Workbook

Sheet Traditional 401k vs Roth
C2: This calculator assumes your only income is from your retirement accounts. Want to include other sources of income? Estimate taxes? Check our Etsy listing.
B5: Roth 401k vs Traditional 401k Calculator
X6: Traditional 401k Calculation | AB6: =E17 -> 10000 | AC6: contribution | AI6: Roth 401k Calculation (matching net 401k contribution) | AM6: =E18 -> 8800 | AN6: contribution | AR6: Roth 401k Calculation (matching 401k contribution with effective tax rate) | AW6: =H19 -> 0 | AX6: contribution | BC6: Roth 401k Calculation (matching gross 401k contribution) | BG6: =H20 -> 10000 | BH6: contribution
B7: Instructions: Simply replace the numbers in the green cells below with your own and see which investment account is right for you: a Roth 401k or a Traditional 401k.
Q8: Inflation Rate | X8: Age | Y8: Beg Balance | Z8: Contribution | AA8: Withdrawal | AB8: Interest Earned | AC8: 401k Balance | AD8: After-tax income | AE8: Overages | AH8: Inflation Rate | AI8: Age | AJ8: Beg Balance | AK8: Contribution | AL8: Withdrawal | AM8: Interest Earned | AN8: Same out of pocket Roth Balance | AO8: Overages | AR8: Inflation Rate | AS8: Age | AT8: Beg Balance | AU8: Contribution | AV8: Withdrawal | AW8: Interest Earned | AX8: Ending Balance | AY8: Overages | BB8: Inflation Rate | BC8: Age | BD8: Beg Balance | BE8: Contribution | BF8: Withdrawal | BG8: Interest Earned | BH8: Ending Balance | BI8: Overages
Q9: =IF(X9>$E$31,(1+$E$54),1) -> 1 | X9: =E12 -> 35 | Y9: 0 | Z9: =IF(X9>=$E$31,0,$E$17) -> 10000 | AA9: =IF(X9>$E$31,-$E$33,0) -> 0 | AB9: =SUM(Y9:AA9)*$E$22 -> 500 | AC9: =IF(SUM(Y9:AB9)<0,0,(SUM(Y9:AB9))) -> 10500 | AD9: =IF(AA9>$E$31,-$E$38,0) -> 0 | AE9: =IF(AB9<0,AB9,0) -> 0 | AH9: =IF(AI9>$E$31,(1+$E$54),1) -> 1 | AI9: =$E$12 -> 35 | AJ9: 0 | AK9: =IF(AI9>=$E$31,0,$E$18) -> 8800 | AL9: =IF(AI9>$E$31,-$E$35,0) -> 0 | AM9: =SUM(AJ9:AL9)*$E$22 -> 440 | AN9: =IF(SUM(AJ9:AM9)<0,0,(SUM(AJ9:AM9))) -> 9240 | AO9: =IF(AM9<0,AM9,0) -> 0 | AR9: =IF(AS9>$E$31,(1+$E$54),1) -> 1 | AS9: =$E$12 -> 35 | AT9: =$E$19 -> 22300 | AU9: =IF(AS9>=$E$31,0,$H$19) -> 0 | AV9: =IF(AS9>$E$31,-$E$33,0) -> 0 | AW9: =SUM(AT9:AV9)*$E$22 -> 1115 | AX9: =IF(SUM(AT9:AW9)<0,0,(SUM(AT9:AW9))) -> 23415 | AY9: =IF(AW9<0,AW9,0) -> 0 | BB9: =IF(BC9>$E$31,(1+$E$54),1) -> 1 | BC9: =$E$12 -> 35 | BD9: 0 | BE9: =IF(BC9>=$E$31,0,$H$20) -> 10000 | BF9: =IF(BC9>$E$31,-$E$35,0) -> 0 | BG9: =SUM(BD9:BF9)*$E$22 -> 500 | BH9: =IF(SUM(BD9:BG9)<0,0,(SUM(BD9:BG9))) -> 10500 | BI9: =IF(BG9<0,BG9,0) -> 0
Q10: 1 | X10: =X9+1 -> 36 | Y10: =AC9 -> 10500 | Z10: 10000 | AA10: =IF(AC9=0,0, IF(AND(X10=$E$31,AC9<$E$33),-AC9,IF(X10=$E$31, -$E$33*Q10,IF(X10<$E$31,0,IF(-AA9*Q10>AC9,-AC9,AA9*Q10))))) -> 0 | AB10: =IF(AC9=0,0,SUM(Y10:AA10)*$E$22) -> 1025 | AC10: =IF(SUM(Y10:AB10)<0,0,(SUM(Y10:AB10))) -> 21525 | AD10: =IF($AC9=0,0,IF(AND(-AA10<$E$33,-AA10<$E$37),AA10,IF(AND(-AA10<$E$33,-AA10>$E$37),AA10*($Q10-$E$40),IF($X10=$E$31,-$E$35*($Q10),IF($X10<$E$31,0,IF(-$AA9*$Q10>$AC9,-$AC9*AD9/AA9,$AD9*$Q10)))))) -> 0 | AE10: =IF($AC9=0,0,IF(AND(-AB10<$E$33,-$AA$13<$E$37),AB10,IF($X10=$E$31,-$E$35*($Q10-$E$40),IF($X10<$E$31,0,IF(-$AA9*$Q10>$AC9,-$AC9*AE9/AB9,$AD9*$Q10))))) -> 1025 | AH10: 1 | AI10: =AI9+1 -> 36 | AJ10: =AN9 -> 9240 | AK10: 8800 | AL10: =IF(AN9=0,0,IF(AND(AI10=$E$31,AN9<$E$35),-AN9,IF(AI10=$E$31,-$E$35*AH10,IF(AI10<$E$31,0,IF(-AL9*AH10>AN9,-AN9,AL9*AH10))))) -> 0 | AM10: =IF(AN9=0,0,SUM(AJ10:AL10)*$E$22) -> 902 | AN10: =IF(SUM(AJ10:AM10)<0,0,(SUM(AJ10:AM10))) -> 18942 | AO10: =IF(AM10<0,AM10,0) -> 0 | AR10: 1 | AS10: =AS9+1 -> 36 | AT10: =AX9 -> 23415 | AU10: 0 | AV10: =IF(AX9=0,0,IF(AS10=$E$31,-#REF!*AR10,IF(AS10<$E$31,0,IF(-AV9*AR10>AX9,-AX9,AV9*AR10)))) -> 0 | AW10: =IF(AX9=0,0,SUM(AT10:AV10)*$E$22) -> 1170.75 | AX10: =IF(SUM(AT10:AW10)<0,0,(SUM(AT10:AW10))) -> 24585.75 | AY10: =IF(AW10<0,AW10,0) -> 0 | BB10: 1 | BC10: =BC9+1 -> 36 | BD10: =BH9 -> 10500 | BE10: 10000 | BF10: =IF(BH9=0,0,IF(BC10=$E$31,-$E$35*BB10,IF(BC10<$E$31,0,IF(-BF9*BB10>BH9,-BH9,BF9*BB10)))) -> 0 | BG10: =IF(BH9=0,0,SUM(BD10:BF10)*$E$22) -> 1025 | BH10: =IF(SUM(BD10:BG10)<0,0,(SUM(BD10:BG10))) -> 21525 | BI10: =IF(BG10<0,BG10,0) -> 0
Q11: 1 | X11: =X10+1 -> 37 | Y11: =AC10 -> 21525 | Z11: 10000 | AA11: 0 | AB11: 1576.25 | AC11: 33101.25 | AD11: 0 | AE11: =IF(AB11<0,AB11,0) -> 0 | AH11: 1 | AI11: =AI10+1 -> 37 | AJ11: =AN10 -> 18942 | AK11: 8800 | AL11: 0 | AM11: 1387.1 | AN11: =IF(SUM(AJ11:AM11)<0,0,(SUM(AJ11:AM11))) -> 29129.1 | AO11: 0 | AR11: 1 | AS11: =AS10+1 -> 37 | AT11: =AX10 -> 24585.75 | AU11: 0 | AV11: =IF(AX10=0,0,IF(AS11=$E$31,-#REF!*AR11,IF(AS11<$E$31,0,IF(-AV10*AR11>AX10,-AX10,AV10*AR11)))) -> 0 | AW11: 1229.2875 | AX11: 25815.0375 | AY11: 0 | BB11: 1 | BC11: =BC10+1 -> 37 | BD11: =BH10 -> 21525 | BE11: 10000 | BF11: 0 | BG11: 1576.25 | BH11: 33101.25 | BI11: 0
B12: Current age | E12: 35 | J12: Total distributions | Q12: 1 | X12: 38 | Y12: 33101.25 | Z12: 10000 | AA12: 0 | AB12: 2155.0625 | AC12: 45256.3125 | AD12: 0 | AE12: 0 | AH12: 1 | AI12: =AI11+1 -> 38 | AJ12: 29129.1 | AK12: 8800 | AL12: 0 | AM12: 1896.455 | AN12: 39825.555 | AO12: 0 | AR12: 1 | AS12: =AS11+1 -> 38 | AT12: 25815.0375 | AU12: 0 | AV12: =IF(AX11=0,0,IF(AS12=$E$31,-#REF!*AR12,IF(AS12<$E$31,0,IF(-AV11*AR12>AX11,-AX11,AV11*AR12)))) -> 0 | AW12: 1290.751875 | AX12: 27105.78938 | AY12: 0 | BB12: 1 | BC12: =BC11+1 -> 38 | BD12: 33101.25 | BE12: 10000 | BF12: 0 | BG12: 2155.0625 | BH12: 45256.3125 | BI12: 0
B13: Filing status | E13: Married | F13: =E16-E17 -> 22300 | J13: (per the chart) | Q13: 1 | X13: 39 | Y13: 45256.3125 | Z13: 10000 | AA13: 0 | AB13: 2762.815625 | AC13: 58019.12813 | AD13: 0 | AE13: 0 | AH13: 1 | AI13: 39 | AJ13: 39825.555 | AK13: 8800 | AL13: 0 | AM13: 2431.27775 | AN13: 51056.83275 | AO13: 0 | AR13: 1 | AS13: 39 | AT13: 27105.78938 | AU13: 0 | AV13: =IF(AX12=0,0,IF(AS13=$E$31,-#REF!*AR13,IF(AS13<$E$31,0,IF(-AV12*AR13>AX12,-AX12,AV12*AR13)))) -> 0 | AW13: 1355.289469 | AX13: 28461.07884 | AY13: 0 | BB13: 1 | BC13: 39 | BD13: 45256.3125 | BE13: 10000 | BF13: 0 | BG13: 2762.815625 | BH13: 58019.12813 | BI13: 0
B14: Current annual income | E14: 60000 | Q14: 1 | X14: 40 | Y14: 58019.12813 | Z14: 10000 | AA14: =IF(AC13=0,0, IF(AND(X14=$E$31,AC13<$E$33),-AC13,IF(X14=$E$31, -$E$33*Q14,IF(X14<$E$31,0,IF(-AA13*Q14>AC13,-AC13,AA13*Q14))))) -> 0 | AB14: 3400.956406 | AC14: 71420.08453 | AD14: 0 | AE14: 0 | AH14: 1 | AI14: 40 | AJ14: 51056.83275 | AK14: 8800 | AL14: 0 | AM14: 2992.841638 | AN14: 62849.67439 | AO14: 0 | AR14: 1 | AS14: 40 | AT14: 28461.07884 | AU14: 0 | AV14: =IF(AX13=0,0,IF(AS14=$E$31,-#REF!*AR14,IF(AS14<$E$31,0,IF(-AV13*AR14>AX13,-AX13,AV13*AR14)))) -> 0 | AW14: 1423.053942 | AX14: 29884.13279 | AY14: 0 | BB14: 1 | BC14: 40 | BD14: 58019.12813 | BE14: 10000 | BF14: 0 | BG14: 3400.956406 | BH14: 71420.08453 | BI14: 0
B15: Standard deduction (2023) | E15: =VLOOKUP($E$13,Data!$C$3:$D$6,2,FALSE) -> 27700 | Q15: 1 | X15: 41 | Y15: 71420.08453 | Z15: 10000 | AA15: 0 | AB15: 4071.004227 | AC15: 85491.08876 | AD15: 0 | AE15: 0 | AH15: 1 | AI15: 41 | AJ15: 62849.67439 | AK15: 8800 | AL15: 0 | AM15: 3582.483719 | AN15: 75232.15811 | AO15: 0 | AR15: 1 | AS15: 41 | AT15: 29884.13279 | AU15: 0 | AV15: =IF(AX14=0,0,IF(AS15=$E$31,-#REF!*AR15,IF(AS15<$E$31,0,IF(-AV14*AR15>AX14,-AX14,AV14*AR15)))) -> 0 | AW15: 1494.206639 | AX15: 31378.33943 | AY15: 0 | BB15: 1 | BC15: 41 | BD15: 71420.08453 | BE15: 10000 | BF15: 0 | BG15: 4071.004227 | BH15: 85491.08876 | BI15: 0
B16: Income after standard deduction | E16: =E14-E15 -> 32300 | Q16: 1 | X16: 42 | Y16: 85491.08876 | Z16: 10000 | AA16: 0 | AB16: 4774.554438 | AC16: 100265.6432 | AD16: 0 | AE16: 0 | AH16: 1 | AI16: 42 | AJ16: 75232.15811 | AK16: 8800 | AL16: 0 | AM16: 4201.607905 | AN16: 88233.76601 | AO16: 0 | AR16: 1 | AS16: 42 | AT16: 31378.33943 | AU16: 0 | AV16: =IF(AX15=0,0,IF(AS16=$E$31,-#REF!*AR16,IF(AS16<$E$31,0,IF(-AV15*AR16>AX15,-AX15,AV15*AR16)))) -> 0 | AW16: 1568.916971 | AX16: 32947.2564 | AY16: 0 | BB16: 1 | BC16: 42 | BD16: 85491.08876 | BE16: 10000 | BF16: 0 | BG16: 4774.554438 | BH16: 100265.6432 | BI16: 0
B17: Annual contributions (pre tax) | E17: 10000 | Q17: 1 | X17: 43 | Y17: 100265.6432 | Z17: 10000 | AA17: 0 | AB17: 5513.28216 | AC17: 115778.9254 | AD17: 0 | AE17: 0 | AH17: 1 | AI17: 43 | AJ17: 88233.76601 | AK17: 8800 | AL17: 0 | AM17: 4851.688301 | AN17: 101885.4543 | AO17: 0 | AR17: 1 | AS17: 43 | AT17: 32947.2564 | AU17: 0 | AV17: =IF(AX16=0,0,IF(AS17=$E$31,-#REF!*AR17,IF(AS17<$E$31,0,IF(-AV16*AR17>AX16,-AX16,AV16*AR17)))) -> 0 | AW17: 1647.36282 | AX17: 34594.61922 | AY17: 0 | BB17: 1 | BC17: 43 | BD17: 100265.6432 | BE17: 10000 | BF17: 0 | BG17: 5513.28216 | BH17: 115778.9254 | BI17: 0
B18: (Equivalent Roth Contribution) | E18: =E17-E25 -> 8800 | Q18: 1 | X18: 44 | Y18: 115778.9254 | Z18: 10000 | AA18: 0 | AB18: 6288.946268 | AC18: 132067.8716 | AD18: 0 | AE18: 0 | AH18: 1 | AI18: 44 | AJ18: 101885.4543 | AK18: 8800 | AL18: 0 | AM18: 5534.272716 | AN18: 116219.727 | AO18: 0 | AR18: 1 | AS18: 44 | AT18: 34594.61922 | AU18: 0 | AV18: =IF(AX17=0,0,IF(AS18=$E$31,-#REF!*AR18,IF(AS18<$E$31,0,IF(-AV17*AR18>AX17,-AX17,AV17*AR18)))) -> 0 | AW18: 1729.730961 | AX18: 36324.35018 | AY18: 0 | BB18: 1 | BC18: 44 | BD18: 115778.9254 | BE18: 10000 | BF18: 0 | BG18: 6288.946268 | BH18: 132067.8716 | BI18: 0
B19: Income after SD and contribution | E19: =F13 -> 22300 | Q19: 1 | X19: 45 | Y19: 132067.8716 | Z19: 10000 | AA19: 0 | AB19: 7103.393581 | AC19: 149171.2652 | AD19: 0 | AE19: 0 | AH19: 1 | AI19: 45 | AJ19: 116219.727 | AK19: 8800 | AL19: 0 | AM19: 6250.986351 | AN19: 131270.7134 | AO19: 0 | AR19: 1 | AS19: 45 | AT19: 36324.35018 | AU19: 0 | AV19: =IF(AX18=0,0,IF(AS19=$E$31,-#REF!*AR19,IF(AS19<$E$31,0,IF(-AV18*AR19>AX18,-AX18,AV18*AR19)))) -> 0 | AW19: 1816.217509 | AX19: 38140.56769 | AY19: 0 | BB19: 1 | BC19: 45 | BD19: 132067.8716 | BE19: 10000 | BF19: 0 | BG19: 7103.393581 | BH19: 149171.2652 | BI19: 0
G20: Match 401k gross contribution | H20: =E17 -> 10000 | Q20: 1 | X20: 46 | Y20: 149171.2652 | Z20: 10000 | AA20: 0 | AB20: 7958.56326 | AC20: 167129.8285 | AD20: 0 | AE20: 0 | AH20: 1 | AI20: 46 | AJ20: 131270.7134 | AK20: 8800 | AL20: 0 | AM20: 7003.535669 | AN20: 147074.249 | AO20: 0 | AR20: 1 | AS20: 46 | AT20: 38140.56769 | AU20: 0 | AV20: =IF(AX19=0,0,IF(AS20=$E$31,-#REF!*AR20,IF(AS20<$E$31,0,IF(-AV19*AR20>AX19,-AX19,AV19*AR20)))) -> 0 | AW20: 1907.028384 | AX20: 40047.59607 | AY20: 0 | BB20: 1 | BC20: 46 | BD20: 149171.2652 | BE20: 10000 | BF20: 0 | BG20: 7958.56326 | BH20: 167129.8285 | BI20: 0
B21: Annual investment growth | E21: 0.08 | Q21: 1 | X21: 47 | Y21: 167129.8285 | Z21: 10000 | AA21: 0 | AB21: 8856.491423 | AC21: 185986.3199 | AD21: 0 | AE21: 0 | AH21: 1 | AI21: 47 | AJ21: 147074.249 | AK21: 8800 | AL21: 0 | AM21: 7793.712452 | AN21: 163667.9615 | AO21: 0 | AR21: 1 | AS21: 47 | AT21: 40047.59607 | AU21: 0 | AV21: =IF(AX20=0,0,IF(AS21=$E$31,-#REF!*AR21,IF(AS21<$E$31,0,IF(-AV20*AR21>AX20,-AX20,AV20*AR21)))) -> 0 | AW21: 2002.379804 | AX21: 42049.97587 | AY21: 0 | BB21: 1 | BC21: 47 | BD21: 167129.8285 | BE21: 10000 | BF21: 0 | BG21: 8856.491423 | BH21: 185986.3199 | BI21: 0
B22: Annual growth less inflation | E22: =E21-3% -> 0.05 | Q22: 1 | X22: 48 | Y22: 185986.3199 | Z22: 10000 | AA22: 0 | AB22: 9799.315994 | AC22: =IF(SUM(Y22:AB22)<0,0,(SUM(Y22:AB22))) -> 205785.6359 | AD22: 0 | AE22: 0 | AH22: 1 | AI22: 48 | AJ22: 163667.9615 | AK22: 8800 | AL22: 0 | AM22: 8623.398075 | AN22: 181091.3596 | AO22: 0 | AR22: 1 | AS22: 48 | AT22: 42049.97587 | AU22: 0 | AV22: =IF(AX21=0,0,IF(AS22=$E$31,-#REF!*AR22,IF(AS22<$E$31,0,IF(-AV21*AR22>AX21,-AX21,AV21*AR22)))) -> 0 | AW22: 2102.498794 | AX22: 44152.47467 | AY22: 0 | BB22: 1 | BC22: 48 | BD22: 185986.3199 | BE22: 10000 | BF22: 0 | BG22: 9799.315994 | BH22: 205785.6359 | BI22: 0
B23: Taxes owed with Roth Investment | E23: =F121 -> 3465 | Q23: 1 | X23: 49 | Y23: 205785.6359 | Z23: 10000 | AA23: 0 | AB23: 10789.28179 | AC23: 226574.9177 | AD23: 0 | AE23: 0 | AH23: 1 | AI23: 49 | AJ23: 181091.3596 | AK23: 8800 | AL23: 0 | AM23: 9494.567979 | AN23: 199385.9276 | AO23: 0 | AR23: 1 | AS23: 49 | AT23: 44152.47467 | AU23: 0 | AV23: =IF(AX22=0,0,IF(AS23=$E$31,-#REF!*AR23,IF(AS23<$E$31,0,IF(-AV22*AR23>AX22,-AX22,AV22*AR23)))) -> 0 | AW23: 2207.623733 | AX23: 46360.0984 | AY23: 0 | BB23: 1 | BC23: 49 | BD23: 205785.6359 | BE23: 10000 | BF23: 0 | BG23: 10789.28179 | BH23: 226574.9177 | BI23: 0
B24: Taxes owed post investment | E24: =H121 -> 2265 | Q24: 1 | X24: =X23+1 -> 50 | Y24: =AC23 -> 226574.9177 | Z24: 10000 | AA24: 0 | AB24: 11828.74588 | AC24: 248403.6636 | AD24: 0 | AE24: 0 | AH24: 1 | AI24: =AI23+1 -> 50 | AJ24: =AN23 -> 199385.9276 | AK24: 8800 | AL24: 0 | AM24: 10409.29638 | AN24: 218595.2239 | AO24: 0 | AR24: 1 | AS24: =AS23+1 -> 50 | AT24: =AX23 -> 46360.0984 | AU24: 0 | AV24: =IF(AX23=0,0,IF(AS24=$E$31,-#REF!*AR24,IF(AS24<$E$31,0,IF(-AV23*AR24>AX23,-AX23,AV23*AR24)))) -> 0 | AW24: 2318.00492 | AX24: 48678.10332 | AY24: 0 | BB24: 1 | BC24: =BC23+1 -> 50 | BD24: =BH23 -> 226574.9177 | BE24: 10000 | BF24: 0 | BG24: 11828.74588 | BH24: 248403.6636 | BI24: 0
B25: Annual tax savings with contribution | E25: =E23-E24 -> 1200 | Q25: 1 | X25: 51 | Y25: 248403.6636 | Z25: 10000 | AA25: 0 | AB25: 12920.18318 | AC25: 271323.8467 | AD25: 0 | AE25: 0 | AH25: 1 | AI25: 51 | AJ25: 218595.2239 | AK25: 8800 | AL25: 0 | AM25: 11369.7612 | AN25: 238764.9851 | AO25: 0 | AR25: 1 | AS25: 51 | AT25: 48678.10332 | AU25: 0 | AV25: =IF(AX24=0,0,IF(AS25=$E$31,-#REF!*AR25,IF(AS25<$E$31,0,IF(-AV24*AR25>AX24,-AX24,AV24*AR25)))) -> 0 | AW25: 2433.905166 | AX25: 51112.00849 | AY25: 0 | BB25: 1 | BC25: 51 | BD25: 248403.6636 | BE25: 10000 | BF25: 0 | BG25: 12920.18318 | BH25: 271323.8467 | BI25: 0
Q26: 1 | X26: 52 | Y26: 271323.8467 | Z26: 10000 | AA26: 0 | AB26: 14066.19234 | AC26: 295390.0391 | AD26: 0 | AE26: 0 | AH26: 1 | AI26: 52 | AJ26: 238764.9851 | AK26: 8800 | AL26: 0 | AM26: 12378.24926 | AN26: 259943.2344 | AO26: 0 | AR26: 1 | AS26: 52 | AT26: 51112.00849 | AU26: 0 | AV26: =IF(AX25=0,0,IF(AS26=$E$31,-#REF!*AR26,IF(AS26<$E$31,0,IF(-AV25*AR26>AX25,-AX25,AV25*AR26)))) -> 0 | AW26: 2555.600424 | AX26: 53667.60891 | AY26: 0 | BB26: 1 | BC26: 52 | BD26: 271323.8467 | BE26: 10000 | BF26: 0 | BG26: 14066.19234 | BH26: 295390.0391 | BI26: 0
B27: Tax rate of the savings | E27: =E25/E17 -> 0.12 | Q27: 1 | X27: 53 | Y27: 295390.0391 | Z27: 10000 | AA27: 0 | AB27: 15269.50195 | AC27: 320659.541 | AD27: 0 | AE27: 0 | AH27: 1 | AI27: 53 | AJ27: 259943.2344 | AK27: 8800 | AL27: 0 | AM27: 13437.16172 | AN27: 282180.3961 | AO27: 0 | AR27: 1 | AS27: 53 | AT27: 53667.60891 | AU27: 0 | AV27: =IF(AX26=0,0,IF(AS27=$E$31,-#REF!*AR27,IF(AS27<$E$31,0,IF(-AV26*AR27>AX26,-AX26,AV26*AR27)))) -> 0 | AW27: 2683.380446 | AX27: 56350.98936 | AY27: 0 | BB27: 1 | BC27: 53 | BD27: 295390.0391 | BE27: 10000 | BF27: 0 | BG27: 15269.50195 | BH27: 320659.541 | BI27: 0
Q28: 1 | X28: 54 | Y28: 320659.541 | Z28: 10000 | AA28: 0 | AB28: 16532.97705 | AC28: 347192.5181 | AD28: 0 | AE28: 0 | AH28: 1 | AI28: 54 | AJ28: 282180.3961 | AK28: 8800 | AL28: 0 | AM28: 14549.01981 | AN28: 305529.4159 | AO28: 0 | AR28: 1 | AS28: 54 | AT28: 56350.98936 | AU28: 0 | AV28: =IF(AX27=0,0,IF(AS28=$E$31,-#REF!*AR28,IF(AS28<$E$31,0,IF(-AV27*AR28>AX27,-AX27,AV27*AR28)))) -> 0 | AW28: 2817.549468 | AX28: 59168.53882 | AY28: 0 | BB28: 1 | BC28: 54 | BD28: 320659.541 | BE28: 10000 | BF28: 0 | BG28: 16532.97705 | BH28: 347192.5181 | BI28: 0
Q29: 1 | X29: 55 | Y29: 347192.5181 | Z29: 10000 | AA29: 0 | AB29: 17859.6259 | AC29: 375052.144 | AD29: 0 | AE29: 0 | AH29: 1 | AI29: 55 | AJ29: 305529.4159 | AK29: 8800 | AL29: 0 | AM29: 15716.4708 | AN29: 330045.8867 | AO29: 0 | AR29: 1 | AS29: 55 | AT29: 59168.53882 | AU29: 0 | AV29: =IF(AX28=0,0,IF(AS29=$E$31,-#REF!*AR29,IF(AS29<$E$31,0,IF(-AV28*AR29>AX28,-AX28,AV28*AR29)))) -> 0 | AW29: 2958.426941 | AX29: 62126.96577 | AY29: 0 | BB29: 1 | BC29: 55 | BD29: 347192.5181 | BE29: 10000 | BF29: 0 | BG29: 17859.6259 | BH29: 375052.144 | BI29: 0
Q30: 1 | X30: 56 | Y30: 375052.144 | Z30: 10000 | AA30: 0 | AB30: 19252.6072 | AC30: 404304.7512 | AD30: 0 | AE30: 0 | AH30: 1 | AI30: 56 | AJ30: 330045.8867 | AK30: 8800 | AL30: 0 | AM30: 16942.29434 | AN30: 355788.181 | AO30: 0 | AR30: 1 | AS30: 56 | AT30: 62126.96577 | AU30: 0 | AV30: =IF(AX29=0,0,IF(AS30=$E$31,-#REF!*AR30,IF(AS30<$E$31,0,IF(-AV29*AR30>AX29,-AX29,AV29*AR30)))) -> 0 | AW30: 3106.348288 | AX30: 65233.31405 | AY30: 0 | BB30: 1 | BC30: 56 | BD30: 375052.144 | BE30: 10000 | BF30: 0 | BG30: 19252.6072 | BH30: 404304.7512 | BI30: 0
B31: Retirement age | E31: 70 | H31: 2023 Income Tax Brackets: Taxes Owed with 401k Contribution vs. with Roth Contribution | Q31: 1 | X31: 57 | Y31: 404304.7512 | Z31: 10000 | AA31: 0 | AB31: 20715.23756 | AC31: 435019.9887 | AD31: 0 | AE31: 0 | AH31: 1 | AI31: 57 | AJ31: 355788.181 | AK31: 8800 | AL31: 0 | AM31: 18229.40905 | AN31: 382817.5901 | AO31: 0 | AR31: 1 | AS31: 57 | AT31: 65233.31405 | AU31: 0 | AV31: =IF(AX30=0,0,IF(AS31=$E$31,-#REF!*AR31,IF(AS31<$E$31,0,IF(-AV30*AR31>AX30,-AX30,AV30*AR31)))) -> 0 | AW31: 3261.665703 | AX31: 68494.97976 | AY31: 0 | BB31: 1 | BC31: 57 | BD31: 404304.7512 | BE31: 10000 | BF31: 0 | BG31: 20715.23756 | BH31: 435019.9887 | BI31: 0
B32: Filing status | E32: Married | H32: Tax rate | I32: From | J32: To | K32: Full salary (Roth) | L32: Taxes owed | M32: Salary less contribution (401k) | N32: Taxes owed | Q32: 1 | X32: 58 | Y32: 435019.9887 | Z32: 10000 | AA32: 0 | AB32: 22250.99944 | AC32: 467270.9882 | AD32: 0 | AE32: 0 | AH32: 1 | AI32: 58 | AJ32: 382817.5901 | AK32: 8800 | AL32: 0 | AM32: 19580.8795 | AN32: 411198.4696 | AO32: 0 | AR32: 1 | AS32: 58 | AT32: 68494.97976 | AU32: 0 | AV32: =IF(AX31=0,0,IF(AS32=$E$31,-#REF!*AR32,IF(AS32<$E$31,0,IF(-AV31*AR32>AX31,-AX31,AV31*AR32)))) -> 0 | AW32: 3424.748988 | AX32: 71919.72874 | AY32: 0 | BB32: 1 | BC32: 58 | BD32: 435019.9887 | BE32: 10000 | BF32: 0 | BG32: 22250.99944 | BH32: 467270.9882 | BI32: 0
B33: Yearly withdrawal (today's dollars) | E33: 60000 | H33: =IF($E$13="Single",B71,IF($E$13="Married",B84,IF($E$13="Married filing separately",B97,B110))) -> 0.1 | I33: 0 | J33: 20550 | K33: 20550 | L33: 2055 | M33: 20550 | N33: 2055 | Q33: 1 | X33: 59 | Y33: 467270.9882 | Z33: 10000 | AA33: 0 | AB33: 23863.54941 | AC33: 501134.5376 | AD33: 0 | AE33: 0 | AH33: 1 | AI33: 59 | AJ33: 411198.4696 | AK33: 8800 | AL33: 0 | AM33: 20999.92348 | AN33: 440998.3931 | AO33: 0 | AR33: 1 | AS33: 59 | AT33: 71919.72874 | AU33: 0 | AV33: =IF(AX32=0,0,IF(AS33=$E$31,-#REF!*AR33,IF(AS33<$E$31,0,IF(-AV32*AR33>AX32,-AX32,AV32*AR33)))) -> 0 | AW33: 3595.986437 | AX33: 75515.71518 | AY33: 0 | BB33: 1 | BC33: 59 | BD33: 467270.9882 | BE33: 10000 | BF33: 0 | BG33: 23863.54941 | BH33: 501134.5376 | BI33: 0
B34: Taxes owed | E34: =IF(F183<0,0,F183) -> 3465 | H34: 0.12 | I34: 20551 | J34: 83550 | K34: 11750 | L34: 1410 | M34: 1750 | N34: 210 | Q34: 1 | X34: 60 | Y34: 501134.5376 | Z34: 10000 | AA34: 0 | AB34: 25556.72688 | AC34: 536691.2645 | AD34: 0 | AE34: 0 | AH34: 1 | AI34: 60 | AJ34: 440998.3931 | AK34: 8800 | AL34: 0 | AM34: 22489.91965 | AN34: 472288.3127 | AO34: 0 | AR34: 1 | AS34: 60 | AT34: 75515.71518 | AU34: 0 | AV34: =IF(AX33=0,0,IF(AS34=$E$31,-#REF!*AR34,IF(AS34<$E$31,0,IF(-AV33*AR34>AX33,-AX33,AV33*AR34)))) -> 0 | AW34: 3775.785759 | AX34: 79291.50094 | AY34: 0 | BB34: 1 | BC34: 60 | BD34: 501134.5376 | BE34: 10000 | BF34: 0 | BG34: 25556.72688 | BH34: 536691.2645 | BI34: 0
B35: Net distributions after taxes | E35: =E33-E34 -> 56535 | H35: 0.22 | I35: 83551 | J35: 178150 | K35: 0 | L35: 0 | M35: 0 | N35: 0 | Q35: 1 | X35: 61 | Y35: 536691.2645 | Z35: 10000 | AA35: 0 | AB35: 27334.56322 | AC35: 574025.8277 | AD35: 0 | AE35: 0 | AH35: 1 | AI35: 61 | AJ35: 472288.3127 | AK35: 8800 | AL35: 0 | AM35: 24054.41564 | AN35: 505142.7284 | AO35: 0 | AR35: 1 | AS35: 61 | AT35: 79291.50094 | AU35: 0 | AV35: =IF(AX34=0,0,IF(AS35=$E$31,-#REF!*AR35,IF(AS35<$E$31,0,IF(-AV34*AR35>AX34,-AX34,AV34*AR35)))) -> 0 | AW35: 3964.575047 | AX35: 83256.07599 | AY35: 0 | BB35: 1 | BC35: 61 | BD35: 536691.2645 | BE35: 10000 | BF35: 0 | BG35: 27334.56322 | BH35: 574025.8277 | BI35: 0
H36: 0.24 | I36: 178151 | J36: 340100 | K36: 0 | L36: 0 | M36: 0 | N36: 0 | Q36: 1 | X36: 62 | Y36: 574025.8277 | Z36: 10000 | AA36: 0 | AB36: 29201.29138 | AC36: 613227.1191 | AD36: 0 | AE36: 0 | AH36: 1 | AI36: 62 | AJ36: 505142.7284 | AK36: 8800 | AL36: 0 | AM36: 25697.13642 | AN36: 539639.8648 | AO36: 0 | AR36: 1 | AS36: 62 | AT36: 83256.07599 | AU36: 0 | AV36: =IF(AX35=0,0,IF(AS36=$E$31,-#REF!*AR36,IF(AS36<$E$31,0,IF(-AV35*AR36>AX35,-AX35,AV35*AR36)))) -> 0 | AW36: 4162.803799 | AX36: 87418.87979 | AY36: 0 | BB36: 1 | BC36: 62 | BD36: 574025.8277 | BE36: 10000 | BF36: 0 | BG36: 29201.29138 | BH36: 613227.1191 | BI36: 0
B37: Standard deduction (2023) | E37: =VLOOKUP($E$32,Data!C3:D6,2,FALSE) -> 27700 | H37: 0.32 | I37: 340101 | J37: 431900 | K37: 0 | L37: 0 | M37: 0 | N37: 0 | Q37: 1 | X37: 63 | Y37: 613227.1191 | Z37: 10000 | AA37: 0 | AB37: 31161.35595 | AC37: 654388.475 | AD37: 0 | AE37: 0 | AH37: 1 | AI37: 63 | AJ37: 539639.8648 | AK37: 8800 | AL37: 0 | AM37: 27421.99324 | AN37: 575861.858 | AO37: 0 | AR37: 1 | AS37: 63 | AT37: 87418.87979 | AU37: 0 | AV37: =IF(AX36=0,0,IF(AS37=$E$31,-#REF!*AR37,IF(AS37<$E$31,0,IF(-AV36*AR37>AX36,-AX36,AV36*AR37)))) -> 0 | AW37: 4370.943989 | AX37: 91789.82378 | AY37: 0 | BB37: 1 | BC37: 63 | BD37: 613227.1191 | BE37: 10000 | BF37: 0 | BG37: 31161.35595 | BH37: 654388.475 | BI37: 0
B38: Income after standard deduction | E38: =E33-E37 -> 32300 | H38: 0.35 | I38: 431901 | J38: 647850 | K38: 0 | L38: 0 | M38: 0 | N38: 0 | Q38: 1 | X38: 64 | Y38: 654388.475 | Z38: 10000 | AA38: 0 | AB38: 33219.42375 | AC38: 697607.8988 | AD38: 0 | AE38: 0 | AH38: 1 | AI38: 64 | AJ38: 575861.858 | AK38: 8800 | AL38: 0 | AM38: 29233.0929 | AN38: 613894.9509 | AO38: 0 | AR38: 1 | AS38: 64 | AT38: 91789.82378 | AU38: 0 | AV38: =IF(AX37=0,0,IF(AS38=$E$31,-#REF!*AR38,IF(AS38<$E$31,0,IF(-AV37*AR38>AX37,-AX37,AV37*AR38)))) -> 0 | AW38: 4589.491189 | AX38: 96379.31497 | AY38: 0 | BB38: 1 | BC38: 64 | BD38: 654388.475 | BE38: 10000 | BF38: 0 | BG38: 33219.42375 | BH38: 697607.8988 | BI38: 0
H39: 0.37 | I39: 647851 | J39: 0 | K39: 0 | L39: 0 | M39: 0 | N39: 0 | Q39: 1 | X39: 65 | Y39: 697607.8988 | Z39: 10000 | AA39: 0 | AB39: 35380.39494 | AC39: 742988.2937 | AD39: 0 | AE39: 0 | AH39: 1 | AI39: 65 | AJ39: 613894.9509 | AK39: 8800 | AL39: 0 | AM39: 31134.74755 | AN39: 653829.6985 | AO39: 0 | AR39: 1 | AS39: 65 | AT39: 96379.31497 | AU39: 0 | AV39: =IF(AX38=0,0,IF(AS39=$E$31,-#REF!*AR39,IF(AS39<$E$31,0,IF(-AV38*AR39>AX38,-AX38,AV38*AR39)))) -> 0 | AW39: 4818.965748 | AX39: 101198.2807 | AY39: 0 | BB39: 1 | BC39: 65 | BD39: 697607.8988 | BE39: 10000 | BF39: 0 | BG39: 35380.39494 | BH39: 742988.2937 | BI39: 0
B40: Effective tax rate on the gross | E40: =IF(E34<0,0,E34/E33) -> 0.05775 | K40: Roth taxes owed: | L40: =SUM(L33:L39) -> 3465 | M40: 401k taxes owed: | N40: =SUM(N33:N39) -> 2265 | Q40: 1 | X40: 66 | Y40: 742988.2937 | Z40: 10000 | AA40: 0 | AB40: 37649.41469 | AC40: 790637.7084 | AD40: 0 | AE40: 0 | AH40: 1 | AI40: 66 | AJ40: 653829.6985 | AK40: 8800 | AL40: 0 | AM40: 33131.48492 | AN40: 695761.1834 | AO40: 0 | AR40: 1 | AS40: 66 | AT40: 101198.2807 | AU40: 0 | AV40: =IF(AX39=0,0,IF(AS40=$E$31,-#REF!*AR40,IF(AS40<$E$31,0,IF(-AV39*AR40>AX39,-AX39,AV39*AR40)))) -> 0 | AW40: 5059.914036 | AX40: 106258.1947 | AY40: 0 | BB40: 1 | BC40: 66 | BD40: 742988.2937 | BE40: 10000 | BF40: 0 | BG40: 37649.41469 | BH40: 790637.7084 | BI40: 0
Q41: =IF(X41>$E$31,(1+$E$54),1) -> 1 | X41: 67 | Y41: 790637.7084 | Z41: 10000 | AA41: 0 | AB41: 40031.88542 | AC41: 840669.5938 | AD41: 0 | AE41: 0 | AH41: =IF(AI41>$E$31,(1+$E$54),1) -> 1 | AI41: 67 | AJ41: 695761.1834 | AK41: 8800 | AL41: 0 | AM41: 35228.05917 | AN41: 739789.2426 | AO41: 0 | AR41: =IF(AS41>$E$31,(1+$E$54),1) -> 1 | AS41: 67 | AT41: 106258.1947 | AU41: =IF(AS41>=$E$31,0,$H$19) -> 0 | AV41: =IF(AX40=0,0,IF(AS41=$E$31,-#REF!*AR41,IF(AS41<$E$31,0,IF(-AV40*AR41>AX40,-AX40,AV40*AR41)))) -> 0 | AW41: 5312.909737 | AX41: 111571.1045 | AY41: 0 | BB41: =IF(BC41>$E$31,(1+$E$54),1) -> 1 | BC41: 67 | BD41: 790637.7084 | BE41: =IF(BC41>=$E$31,0,$H$20) -> 10000 | BF41: 0 | BG41: 40031.88542 | BH41: 840669.5938 | BI41: 0
Q42: 1 | X42: 68 | Y42: 840669.5938 | Z42: 10000 | AA42: 0 | AB42: =IF(AC41=0,0,SUM(Y42:AA42)*$E$22) -> 42533.47969 | AC42: 893203.0735 | AD42: 0 | AE42: 0 | AH42: 1 | AI42: 68 | AJ42: 739789.2426 | AK42: 8800 | AL42: 0 | AM42: =IF(AN41=0,0,SUM(AJ42:AL42)*$E$22) -> 37429.46213 | AN42: 786018.7047 | AO42: 0 | AR42: 1 | AS42: 68 | AT42: 111571.1045 | AU42: 0 | AV42: =IF(AX41=0,0,IF(AS42=$E$31,-#REF!*AR42,IF(AS42<$E$31,0,IF(-AV41*AR42>AX41,-AX41,AV41*AR42)))) -> 0 | AW42: =IF(AX41=0,0,SUM(AT42:AV42)*$E$22) -> 5578.555224 | AX42: 117149.6597 | AY42: 0 | BB42: 1 | BC42: 68 | BD42: 840669.5938 | BE42: 10000 | BF42: =IF(BH41=0,0,IF(BC42=$E$31,-$E$35*BB42,IF(BC42<$E$31,0,IF(-BF41*BB42>BH41,-BH41,BF41*BB42)))) -> 0 | BG42: =IF(BH41=0,0,SUM(BD42:BF42)*$E$22) -> 42533.47969 | BH42: 893203.0735 | BI42: 0
Q43: 1 | X43: 69 | Y43: 893203.0735 | Z43: 10000 | AA43: 0 | AB43: 45160.15368 | AC43: 948363.2272 | AD43: 0 | AE43: 0 | AH43: 1 | AI43: 69 | AJ43: 786018.7047 | AK43: 8800 | AL43: 0 | AM43: 39740.93523 | AN43: 834559.6399 | AO43: 0 | AR43: 1 | AS43: 69 | AT43: 117149.6597 | AU43: 0 | AV43: =IF(AX42=0,0,IF(AS43=$E$31,-#REF!*AR43,IF(AS43<$E$31,0,IF(-AV42*AR43>AX42,-AX42,AV42*AR43)))) -> 0 | AW43: 5857.482986 | AX43: 123007.1427 | AY43: 0 | BB43: 1 | BC43: 69 | BD43: 893203.0735 | BE43: 10000 | BF43: 0 | BG43: 45160.15368 | BH43: 948363.2272 | BI43: 0
Q44: 1 | X44: 70 | Y44: 948363.2272 | Z44: 0 | AA44: -60000 | AB44: 44418.16136 | AC44: 932781.3886 | AD44: -56535 | AE44: 0 | AH44: 1 | AI44: 70 | AJ44: 834559.6399 | AK44: 0 | AL44: -56535 | AM44: 38901.232 | AN44: 816925.8719 | AO44: 0 | AR44: 1 | AS44: 70 | AT44: 123007.1427 | AU44: 0 | AV44: =IF(AX43=0,0,IF(AS44=$E$31,-#REF!*AR44,IF(AS44<$E$31,0,IF(-AV43*AR44>AX43,-AX43,AV43*AR44)))) ->  | BB44: 1 | BC44: 70 | BD44: 948363.2272 | BE44: 0 | BF44: -56535 | BG44: 44591.41136 | BH44: 936419.6386 | BI44: 0
Q45: 1 | X45: 71 | Y45: 932781.3886 | Z45: 0 | AA45: -60000 | AB45: 43639.06943 | AC45: 916420.458 | AD45: -56535 | AE45: 0 | AH45: 1 | AI45: 71 | AJ45: 816925.8719 | AK45: 0 | AL45: -56535 | AM45: 38019.5436 | AN45: 798410.4155 | AO45: 0 | AR45: 1 | AS45: 71 | AU45: 0 | AV45: =IF(AX44=0,0,IF(AS45=$E$31,-#REF!*AR45,IF(AS45<$E$31,0,IF(-AV44*AR45>AX44,-AX44,AV44*AR45)))) ->  | BB45: 1 | BC45: 71 | BD45: 936419.6386 | BE45: 0 | BF45: -56535 | BG45: 43994.23193 | BH45: 923878.8705 | BI45: 0
Q46: 1 | X46: 72 | Y46: 916420.458 | Z46: 0 | AA46: -60000 | AB46: 42821.0229 | AC46: 899241.4809 | AD46: -56535 | AE46: 0 | AH46: 1 | AI46: 72 | AJ46: 798410.4155 | AK46: 0 | AL46: -56535 | AM46: 37093.77078 | AN46: 778969.1863 | AO46: 0 | AR46: 1 | AS46: 72 | AU46: 0 | AV46: =IF(AX45=0,0,IF(AS46=$E$31,-#REF!*AR46,IF(AS46<$E$31,0,IF(-AV45*AR46>AX45,-AX45,AV45*AR46)))) ->  | BB46: 1 | BC46: 72 | BD46: 923878.8705 | BE46: 0 | BF46: -56535 | BG46: 43367.19352 | BH46: 910711.064 | BI46: 0
Q47: 1 | X47: =X46+1 -> 73 | Y47: 899241.4809 | Z47: =IF(X47>=$E$31,0,$E$17) -> 0 | AA47: -60000 | AB47: 41962.07404 | AC47: 881203.5549 | AD47: -56535 | AE47: 0 | AH47: 1 | AI47: 73 | AJ47: 778969.1863 | AK47: =IF(AI47>=$E$31,0,$E$18) -> 0 | AL47: -56535 | AM47: 36121.70932 | AN47: 758555.8956 | AO47: 0 | AR47: 1 | AS47: 73 | AU47: 0 | AV47: =IF(AX46=0,0,IF(AS47=$E$31,-#REF!*AR47,IF(AS47<$E$31,0,IF(-AV46*AR47>AX46,-AX46,AV46*AR47)))) ->  | BB47: 1 | BC47: 73 | BD47: 910711.064 | BE47: 0 | BF47: -56535 | BG47: 42708.8032 | BH47: 896884.8672 | BI47: 0
Q48: 1 | X48: 74 | Y48: 881203.5549 | Z48: 0 | AA48: -60000 | AB48: 41060.17775 | AC48: 862263.7327 | AD48: -56535 | AE48: 0 | AH48: 1 | AI48: 74 | AJ48: 758555.8956 | AK48: 0 | AL48: -56535 | AM48: 35101.04478 | AN48: 737121.9404 | AO48: 0 | AR48: 1 | AS48: 74 | AU48: 0 | AV48: =IF(AX47=0,0,IF(AS48=$E$31,-#REF!*AR48,IF(AS48<$E$31,0,IF(-AV47*AR48>AX47,-AX47,AV47*AR48)))) ->  | BB48: 1 | BC48: 74 | BD48: 896884.8672 | BE48: 0 | BF48: -56535 | BG48: 42017.49336 | BH48: 882367.3606 | BI48: 0
C49: Traditional | F49: Roth | Q49: 1 | X49: 75 | Y49: 862263.7327 | Z49: 0 | AA49: -60000 | AB49: 40113.18663 | AC49: 842376.9193 | AD49: -56535 | AE49: 0 | AH49: 1 | AI49: 75 | AJ49: 737121.9404 | AK49: 0 | AL49: -56535 | AM49: 34029.34702 | AN49: 714616.2874 | AO49: 0 | AR49: 1 | AS49: 75 | AU49: 0 | AV49: =IF(AX48=0,0,IF(AS49=$E$31,-#REF!*AR49,IF(AS49<$E$31,0,IF(-AV48*AR49>AX48,-AX48,AV48*AR49)))) ->  | BB49: 1 | BC49: 75 | BD49: 882367.3606 | BE49: 0 | BF49: -56535 | BG49: 41291.61803 | BH49: 867123.9786 | BI49: 0
C50: Contributions | D50: Interest | E50: Total with 401k | F50: Contributions | G50: Interest | H50: Total with Roth | J50: If invest full amount… | Q50: 1 | X50: 76 | Y50: 842376.9193 | Z50: 0 | AA50: -60000 | AB50: 39118.84597 | AC50: 821495.7653 | AD50: -56535 | AE50: 0 | AH50: 1 | AI50: 76 | AJ50: 714616.2874 | AK50: 0 | AL50: -56535 | AM50: 32904.06437 | AN50: 690985.3518 | AO50: 0 | AR50: 1 | AS50: 76 | AU50: 0 | AV50: =IF(AX49=0,0,IF(AS50=$E$31,-#REF!*AR50,IF(AS50<$E$31,0,IF(-AV49*AR50>AX49,-AX49,AV49*AR50)))) ->  | BB50: 1 | BC50: 76 | BD50: 867123.9786 | BE50: 0 | BF50: -56535 | BG50: 40529.44893 | BH50: 851118.4275 | BI50: 0
B51: Resulting 401k distributions: | C51: =SUM(Z9:Z112) -> 350000 | D51: =E51-C51 -> 1270134.263 | E51: =$AD$116 -> 1620134.263 | F51: =SUM(AK9:AK112) -> 308000 | G51: =H51-F51 -> 1098661.716 | H51: =$AL$116 -> 1406661.716 | J51: =$BF$116 -> 1858144.984 | Q51: 1 | X51: 77 | Y51: 821495.7653 | Z51: 0 | AA51: -60000 | AB51: 38074.78826 | AC51: 799570.5535 | AD51: -56535 | AE51: 0 | AH51: 1 | AI51: 77 | AJ51: 690985.3518 | AK51: 0 | AL51: -56535 | AM51: 31722.51759 | AN51: 666172.8694 | AO51: 0 | AR51: 1 | AS51: 77 | AU51: 0 | AV51: =IF(AX50=0,0,IF(AS51=$E$31,-#REF!*AR51,IF(AS51<$E$31,0,IF(-AV50*AR51>AX50,-AX50,AV50*AR51)))) ->  | BB51: 1 | BC51: 77 | BD51: 851118.4275 | BE51: 0 | BF51: -56535 | BG51: 39729.17138 | BH51: 834312.5989 | BI51: 0
Q52: 1 | X52: 78 | Y52: 799570.5535 | Z52: 0 | AA52: -60000 | AB52: 36978.52768 | AC52: 776549.0812 | AD52: -56535 | AE52: 0 | AH52: 1 | AI52: 78 | AJ52: 666172.8694 | AK52: 0 | AL52: -56535 | AM52: 30481.89347 | AN52: 640119.7628 | AO52: 0 | AR52: 1 | AS52: 78 | AU52: 0 | AV52: =IF(AX51=0,0,IF(AS52=$E$31,-#REF!*AR52,IF(AS52<$E$31,0,IF(-AV51*AR52>AX51,-AX51,AV51*AR52)))) ->  | BB52: 1 | BC52: 78 | BD52: 834312.5989 | BE52: 0 | BF52: -56535 | BG52: 38888.87995 | BH52: 816666.4788 | BI52: 0
Q53: 1 | X53: 79 | Y53: 776549.0812 | Z53: 0 | AA53: -60000 | AB53: 35827.45406 | AC53: 752376.5353 | AD53: -56535 | AE53: 0 | AH53: 1 | AI53: 79 | AJ53: 640119.7628 | AK53: 0 | AL53: -56535 | AM53: 29179.23814 | AN53: 612764.001 | AO53: 0 | AR53: 1 | AS53: 79 | AU53: 0 | AV53: =IF(AX52=0,0,IF(AS53=$E$31,-#REF!*AR53,IF(AS53<$E$31,0,IF(-AV52*AR53>AX52,-AX52,AV52*AR53)))) ->  | BB53: 1 | BC53: 79 | BD53: 816666.4788 | BE53: 0 | BF53: -56535 | BG53: 38006.57394 | BH53: 798138.0528 | BI53: 0
Q54: 1 | X54: 80 | Y54: 752376.5353 | Z54: 0 | AA54: -60000 | AB54: 34618.82676 | AC54: 726995.362 | AD54: -56535 | AE54: 0 | AH54: 1 | AI54: 80 | AJ54: 612764.001 | AK54: 0 | AL54: -56535 | AM54: 27811.45005 | AN54: 584040.451 | AO54: 0 | AR54: 1 | AS54: 80 | AU54: 0 | AV54: =IF(AX53=0,0,IF(AS54=$E$31,-#REF!*AR54,IF(AS54<$E$31,0,IF(-AV53*AR54>AX53,-AX53,AV53*AR54)))) ->  | BB54: 1 | BC54: 80 | BD54: 798138.0528 | BE54: 0 | BF54: -56535 | BG54: 37080.15264 | BH54: 778683.2054 | BI54: 0
Q55: 1 | X55: 81 | Y55: 726995.362 | Z55: 0 | AA55: -60000 | AB55: 33349.7681 | AC55: 700345.1301 | AD55: -56535 | AE55: 0 | AH55: 1 | AI55: 81 | AJ55: 584040.451 | AK55: 0 | AL55: -56535 | AM55: 26375.27255 | AN55: 553880.7236 | AO55: 0 | AR55: 1 | AS55: 81 | AU55: 0 | AV55: =IF(AX54=0,0,IF(AS55=$E$31,-#REF!*AR55,IF(AS55<$E$31,0,IF(-AV54*AR55>AX54,-AX54,AV54*AR55)))) ->  | BB55: 1 | BC55: 81 | BD55: 778683.2054 | BE55: 0 | BF55: -56535 | BG55: 36107.41027 | BH55: 758255.6157 | BI55: 0
E56: ="Based on your inputs and assumptions, you should invest in a" -> Based on your inputs and assumptions, you should invest in a | Q56: 1 | X56: 82 | Y56: 700345.1301 | Z56: 0 | AA56: -60000 | AB56: 32017.25651 | AC56: 672362.3866 | AD56: -56535 | AE56: 0 | AH56: 1 | AI56: 82 | AJ56: 553880.7236 | AK56: 0 | AL56: -56535 | AM56: 24867.28618 | AN56: 522213.0098 | AO56: 0 | AR56: 1 | AS56: 82 | AU56: 0 | AV56: =IF(AX55=0,0,IF(AS56=$E$31,-#REF!*AR56,IF(AS56<$E$31,0,IF(-AV55*AR56>AX55,-AX55,AV55*AR56)))) ->  | BB56: 1 | BC56: 82 | BD56: 758255.6157 | BE56: 0 | BF56: -56535 | BG56: 35086.03078 | BH56: 736806.6465 | BI56: 0
E57: =IF(E27>E40,"Traditional 401k", "Roth 401k") -> Traditional 401k | Q57: 1 | X57: 83 | Y57: 672362.3866 | Z57: 0 | AA57: -60000 | AB57: 30618.11933 | AC57: 642980.506 | AD57: -56535 | AE57: 0 | AH57: 1 | AI57: 83 | AJ57: 522213.0098 | AK57: 0 | AL57: -56535 | AM57: 23283.90049 | AN57: 488961.9103 | AO57: 0 | AR57: 1 | AS57: 83 | AU57: 0 | AV57: =IF(AX56=0,0,IF(AS57=$E$31,-#REF!*AR57,IF(AS57<$E$31,0,IF(-AV56*AR57>AX56,-AX56,AV56*AR57)))) ->  | BB57: 1 | BC57: 83 | BD57: 736806.6465 | BE57: 0 | BF57: -56535 | BG57: 34013.58232 | BH57: 714285.2288 | BI57: 0
Q58: 1 | X58: 84 | Y58: 642980.506 | Z58: 0 | AA58: -60000 | AB58: 29149.0253 | AC58: 612129.5313 | AD58: -56535 | AE58: 0 | AH58: 1 | AI58: 84 | AJ58: 488961.9103 | AK58: 0 | AL58: -56535 | AM58: 21621.34551 | AN58: 454048.2558 | AO58: 0 | AR58: 1 | AS58: 84 | AU58: 0 | AV58: =IF(AX57=0,0,IF(AS58=$E$31,-#REF!*AR58,IF(AS58<$E$31,0,IF(-AV57*AR58>AX57,-AX57,AV57*AR58)))) ->  | BB58: 1 | BC58: 84 | BD58: 714285.2288 | BE58: 0 | BF58: -56535 | BG58: 32887.51144 | BH58: 690637.7402 | BI58: 0
Q59: 1 | X59: 85 | Y59: 612129.5313 | Z59: 0 | AA59: -60000 | AB59: 27606.47656 | AC59: 579736.0078 | AD59: -56535 | AE59: 0 | AH59: 1 | AI59: 85 | AJ59: 454048.2558 | AK59: 0 | AL59: -56535 | AM59: 19875.66279 | AN59: 417388.9186 | AO59: 0 | AR59: 1 | AS59: 85 | AU59: 0 | AV59: =IF(AX58=0,0,IF(AS59=$E$31,-#REF!*AR59,IF(AS59<$E$31,0,IF(-AV58*AR59>AX58,-AX58,AV58*AR59)))) ->  | BB59: 1 | BC59: 85 | BD59: 690637.7402 | BE59: 0 | BF59: -56535 | BG59: 31705.13701 | BH59: 665807.8773 | BI59: 0
E60: =IF(E4>I32,"Traditional", "Roth") -> Roth | Q60: 1 | X60: 86 | Y60: 579736.0078 | Z60: 0 | AA60: -60000 | AB60: 25986.80039 | AC60: 545722.8082 | AD60: -56535 | AE60: 0 | AH60: 1 | AI60: 86 | AJ60: 417388.9186 | AK60: 0 | AL60: -56535 | AM60: 18042.69593 | AN60: 378896.6145 | AO60: 0 | AR60: 1 | AS60: 86 | AU60: 0 | AV60: =IF(AX59=0,0,IF(AS60=$E$31,-#REF!*AR60,IF(AS60<$E$31,0,IF(-AV59*AR60>AX59,-AX59,AV59*AR60)))) ->  | BB60: 1 | BC60: 86 | BD60: 665807.8773 | BE60: 0 | BF60: -56535 | BG60: 30463.64386 | BH60: 639736.5211 | BI60: 0
Q61: 1 | X61: 87 | Y61: 545722.8082 | Z61: 0 | AA61: -60000 | AB61: 24286.14041 | AC61: 510008.9486 | AD61: -56535 | AE61: 0 | AH61: 1 | AI61: 87 | AJ61: 378896.6145 | AK61: 0 | AL61: -56535 | AM61: 16118.08072 | AN61: 338479.6952 | AO61: 0 | AR61: 1 | AS61: 87 | AU61: 0 | AV61: =IF(AX60=0,0,IF(AS61=$E$31,-#REF!*AR61,IF(AS61<$E$31,0,IF(-AV60*AR61>AX60,-AX60,AV60*AR61)))) ->  | BB61: 1 | BC61: 87 | BD61: 639736.5211 | BE61: 0 | BF61: -56535 | BG61: 29160.07606 | BH61: 612361.5972 | BI61: 0
Q62: 1 | X62: 88 | Y62: 510008.9486 | Z62: 0 | AA62: -60000 | AB62: 22500.44743 | AC62: 472509.3961 | AD62: -56535 | AE62: 0 | AH62: 1 | AI62: 88 | AJ62: 338479.6952 | AK62: 0 | AL62: -56535 | AM62: 14097.23476 | AN62: 296041.93 | AO62: 0 | AR62: 1 | AS62: 88 | AU62: 0 | AV62: =IF(AX61=0,0,IF(AS62=$E$31,-#REF!*AR62,IF(AS62<$E$31,0,IF(-AV61*AR62>AX61,-AX61,AV61*AR62)))) ->  | BB62: 1 | BC62: 88 | BD62: 612361.5972 | BE62: 0 | BF62: -56535 | BG62: 27791.32986 | BH62: 583617.927 | BI62: 0
Q63: 1 | X63: 89 | Y63: 472509.3961 | Z63: 0 | AA63: -60000 | AB63: 20625.4698 | AC63: 433134.8659 | AD63: -56535 | AE63: 0 | AH63: 1 | AI63: 89 | AJ63: 296041.93 | AK63: 0 | AL63: -56535 | AM63: 11975.3465 | AN63: 251482.2765 | AO63: 0 | AR63: 1 | AS63: 89 | AU63: 0 | AV63: =IF(AX62=0,0,IF(AS63=$E$31,-#REF!*AR63,IF(AS63<$E$31,0,IF(-AV62*AR63>AX62,-AX62,AV62*AR63)))) ->  | BB63: 1 | BC63: 89 | BD63: 583617.927 | BE63: 0 | BF63: -56535 | BG63: 26354.14635 | BH63: 553437.0734 | BI63: 0
Q64: 1 | X64: 90 | Y64: 433134.8659 | Z64: 0 | AA64: -60000 | AB64: 18656.74329 | AC64: 391791.6092 | AD64: -56535 | AE64: 0 | AH64: 1 | AI64: 90 | AJ64: 251482.2765 | AK64: 0 | AL64: -56535 | AM64: 9747.363823 | AN64: 204694.6403 | AO64: 0 | AR64: 1 | AS64: 90 | AU64: 0 | AV64: =IF(AX63=0,0,IF(AS64=$E$31,-#REF!*AR64,IF(AS64<$E$31,0,IF(-AV63*AR64>AX63,-AX63,AV63*AR64)))) ->  | BB64: 1 | BC64: 90 | BD64: 553437.0734 | BE64: 0 | BF64: -56535 | BG64: 24845.10367 | BH64: 521747.1771 | BI64: 0
Q65: 1 | X65: 91 | Y65: 391791.6092 | Z65: 0 | AA65: -60000 | AB65: 16589.58046 | AC65: 348381.1896 | AD65: -56535 | AE65: 0 | AH65: 1 | AI65: 91 | AJ65: 204694.6403 | AK65: 0 | AL65: -56535 | AM65: 7407.982015 | AN65: 155567.6223 | AO65: 0 | AR65: 1 | AS65: 91 | AU65: 0 | AV65: =IF(AX64=0,0,IF(AS65=$E$31,-#REF!*AR65,IF(AS65<$E$31,0,IF(-AV64*AR65>AX64,-AX64,AV64*AR65)))) ->  | BB65: 1 | BC65: 91 | BD65: 521747.1771 | BE65: 0 | BF65: -56535 | BG65: 23260.60885 | BH65: 488472.7859 | BI65: 0
Q66: 1 | X66: 92 | Y66: 348381.1896 | Z66: 0 | AA66: -60000 | AB66: 14419.05948 | AC66: 302800.2491 | AD66: -56535 | AE66: 0 | AH66: 1 | AI66: 92 | AJ66: 155567.6223 | AK66: 0 | AL66: -56535 | AM66: 4951.631115 | AN66: 103984.2534 | AO66: 0 | AR66: 1 | AS66: 92 | AU66: 0 | AV66: =IF(AX65=0,0,IF(AS66=$E$31,-#REF!*AR66,IF(AS66<$E$31,0,IF(-AV65*AR66>AX65,-AX65,AV65*AR66)))) ->  | BB66: 1 | BC66: 92 | BD66: 488472.7859 | BE66: 0 | BF66: -56535 | BG66: 21596.8893 | BH66: 453534.6752 | BI66: 0
B67: Current Year Tax Impact | E67: Taxes owed without Contribution | H67: Taxes owed with Contribution | Q67: 1 | X67: 93 | Y67: 302800.2491 | Z67: 0 | AA67: -60000 | AB67: 12140.01246 | AC67: 254940.2616 | AD67: -56535 | AE67: 0 | AH67: 1 | AI67: 93 | AJ67: 103984.2534 | AK67: 0 | AL67: -56535 | AM67: 2372.462671 | AN67: 49821.71609 | AO67: 0 | AR67: 1 | AS67: 93 | AU67: 0 | AV67: =IF(AX66=0,0,IF(AS67=$E$31,-#REF!*AR67,IF(AS67<$E$31,0,IF(-AV66*AR67>AX66,-AX66,AV66*AR67)))) ->  | BB67: 1 | BC67: 93 | BD67: 453534.6752 | BE67: 0 | BF67: -56535 | BG67: 19849.98376 | BH67: 416849.659 | BI67: 0
Q68: 1 | X68: 94 | Y68: 254940.2616 | Z68: 0 | AA68: -60000 | AB68: 9747.013078 | AC68: 204687.2746 | AD68: -56535 | AE68: 0 | AH68: 1 | AI68: 94 | AJ68: 49821.71609 | AK68: 0 | AL68: -49821.71609 | AM68: 0 | AN68: 0 | AO68: 0 | AR68: 1 | AS68: 94 | AU68: 0 | AV68: =IF(AX67=0,0,IF(AS68=$E$31,-#REF!*AR68,IF(AS68<$E$31,0,IF(-AV67*AR68>AX67,-AX67,AV67*AR68)))) ->  | BB68: 1 | BC68: 94 | BD68: 416849.659 | BE68: 0 | BF68: -56535 | BG68: 18015.73295 | BH68: 378330.3919 | BI68: 0
B69: Single filers 2023 | E69: Standard deduction | F69: 13850 | Q69: 1 | X69: 95 | Y69: 204687.2746 | Z69: 0 | AA69: -60000 | AB69: 7234.363732 | AC69: 151921.6384 | AD69: -56535 | AE69: 0 | AH69: 1 | AI69: 95 | AJ69: 0 | AK69: 0 | AL69: 0 | AM69: 0 | AN69: 0 | AO69: 0 | AR69: 1 | AS69: 95 | AU69: 0 | AV69: =IF(AX68=0,0,IF(AS69=$E$31,-#REF!*AR69,IF(AS69<$E$31,0,IF(-AV68*AR69>AX68,-AX68,AV68*AR69)))) ->  | BB69: 1 | BC69: 95 | BD69: 378330.3919 | BE69: 0 | BF69: -56535 | BG69: 16089.7696 | BH69: 337885.1615 | BI69: 0
B70: Tax rate | C70: From | D70: To | E70: Income per bracket | F70: Taxes owed in each category | G70: Income w/ contributions | H70: Taxes owed | Q70: 1 | X70: 96 | Y70: 151921.6384 | Z70: 0 | AA70: -60000 | AB70: 4596.081919 | AC70: 96517.72029 | AD70: -56535 | AE70: 0 | AH70: 1 | AI70: 96 | AJ70: 0 | AK70: 0 | AL70: 0 | AM70: 0 | AN70: 0 | AO70: 0 | AR70: 1 | AS70: 96 | AU70: 0 | AV70: =IF(AX69=0,0,IF(AS70=$E$31,-#REF!*AR70,IF(AS70<$E$31,0,IF(-AV69*AR70>AX69,-AX69,AV69*AR70)))) ->  | BB70: 1 | BC70: 96 | BD70: 337885.1615 | BE70: 0 | BF70: -56535 | BG70: 14067.50808 | BH70: 295417.6696 | BI70: 0
A71: Single | B71: 0.1 | C71: 0 | D71: 10275 | E71: =IF($E$13="Single",IF($E$16>D71,D71,$E$16),0) -> 0 | F71: =E71*B71 -> 0 | G71: =IF($E$13="Single",IF($F$13>D71,D71,$F$13),0) -> 0 | H71: =G71*B71 -> 0 | Q71: 1 | X71: 97 | Y71: 96517.72029 | Z71: 0 | AA71: -60000 | AB71: 1825.886015 | AC71: 38343.60631 | AD71: -56535 | AE71: 0 | AH71: 1 | AI71: 97 | AJ71: 0 | AK71: 0 | AL71: 0 | AM71: 0 | AN71: 0 | AO71: 0 | AR71: 1 | AS71: 97 | AU71: 0 | AV71: =IF(AX70=0,0,IF(AS71=$E$31,-#REF!*AR71,IF(AS71<$E$31,0,IF(-AV70*AR71>AX70,-AX70,AV70*AR71)))) ->  | BB71: 1 | BC71: 97 | BD71: 295417.6696 | BE71: 0 | BF71: -56535 | BG71: 11944.13348 | BH71: 250826.8031 | BI71: 0
A72: Single | B72: 0.12 | C72: 10276 | D72: 41775 | E72: =IF($E$13="Single",IF($E$16>D72,(D72-D71),($E$16-E71)),0) -> 0 | F72: 0 | G72: =IF($E$13="Single",IF($F$13>D72,(D72-D71),($F$13-G71)),0) -> 0 | H72: 0 | Q72: 1 | X72: 98 | Y72: 38343.60631 | Z72: 0 | AA72: -38343.60631 | AB72: 0 | AC72: 0 | AD72: -36129.26305 | AE72: 0 | AH72: 1 | AI72: 98 | AJ72: 0 | AK72: 0 | AL72: 0 | AM72: 0 | AN72: 0 | AO72: 0 | AR72: 1 | AS72: 98 | AU72: 0 | AV72: =IF(AX71=0,0,IF(AS72=$E$31,-#REF!*AR72,IF(AS72<$E$31,0,IF(-AV71*AR72>AX71,-AX71,AV71*AR72)))) ->  | BB72: 1 | BC72: 98 | BD72: 250826.8031 | BE72: 0 | BF72: -56535 | BG72: 9714.590153 | BH72: 204006.3932 | BI72: 0
A73: Single | B73: 0.22 | C73: 41776 | D73: 89075 | E73: =IF($E$13="Single",IF($E$16>D73,(D73-D72),($E$16-E72-E71)),0) -> 0 | F73: 0 | G73: =IF($E$13="Single",IF($F$13>D73,(D73-D72),($F$13-G72-G71)),0) -> 0 | H73: 0 | Q73: =IF(X73>$E$31,(1+$E$54),1) -> 1 | X73: 99 | Y73: 0 | Z73: =IF(X73>=$E$31,0,$E$17) -> 0 | AA73: 0 | AB73: 0 | AC73: 0 | AD73: 0 | AE73: 0 | AH73: =IF(AI73>$E$31,(1+$E$54),1) -> 1 | AI73: 99 | AJ73: 0 | AK73: =IF(AI73>=$E$31,0,$E$18) -> 0 | AL73: 0 | AM73: 0 | AN73: 0 | AO73: 0 | AR73: =IF(AS73>$E$31,(1+$E$54),1) -> 1 | AS73: 99 | AU73: =IF(AS73>=$E$31,0,$H$19) -> 0 | AV73: =IF(AX72=0,0,IF(AS73=$E$31,-#REF!*AR73,IF(AS73<$E$31,0,IF(-AV72*AR73>AX72,-AX72,AV72*AR73)))) ->  | BB73: =IF(BC73>$E$31,(1+$E$54),1) -> 1 | BC73: 99 | BD73: 204006.3932 | BE73: =IF(BC73>=$E$31,0,$H$20) -> 0 | BF73: -56535 | BG73: 7373.569661 | BH73: 154844.9629 | BI73: 0
A74: Single | B74: 0.24 | C74: 89076 | D74: 170050 | E74: =IF($E$13="Single",IF($E$16>D74,(D74-D73),($E$16-E73-E72-E71)),0) -> 0 | F74: 0 | G74: =IF($E$13="Single",IF($F$13>D74,(D74-D73),($F$13-G73-G72-G71)),0) -> 0 | H74: 0 | Q74: 1 | X74: =X73+1 -> 100 | Y74: 0 | Z74: 0 | AA74: =IF(AC73=0,0, IF(AND(X74=$E$31,AC73<$E$33),-AC73,IF(X74=$E$31, -$E$33*Q74,IF(X74<$E$31,0,IF(-AA73*Q74>AC73,-AC73,AA73*Q74))))) -> 0 | AB74: =IF(AC73=0,0,SUM(Y74:AA74)*$E$22) -> 0 | AC74: =IF(SUM(Y74:AB74)<0,0,(SUM(Y74:AB74))) -> 0 | AD74: =IF($AC73=0,0,IF(AND(-AA74<$E$33,-AA74<$E$37),AA74,IF(AND(-AA74<$E$33,-AA74>$E$37),AA74*($Q74-$E$40),IF($X74=$E$31,-$E$35*($Q74),IF($X74<$E$31,0,IF(-$AA73*$Q74>$AC73,-$AC73*AD73/AA73,$AD73*$Q74)))))) -> 0 | AE74: =IF(AB74<0,AB74,0) -> 0 | AH74: 1 | AI74: 100 | AJ74: 0 | AK74: 0 | AL74: =IF(AN73=0,0,IF(AND(AI74=$E$31,AN73<$E$35),-AN73,IF(AI74=$E$31,-$E$35*AH74,IF(AI74<$E$31,0,IF(-AL73*AH74>AN73,-AN73,AL73*AH74))))) -> 0 | AM74: =IF(AN73=0,0,SUM(AJ74:AL74)*$E$22) -> 0 | AN74: =IF(SUM(AJ74:AM74)<0,0,(SUM(AJ74:AM74))) -> 0 | AO74: =IF(AM74<0,AM74,0) -> 0 | AR74: 1 | AS74: 100 | AU74: 0 | AV74: =IF(AX73=0,0,IF(AS74=$E$31,-#REF!*AR74,IF(AS74<$E$31,0,IF(-AV73*AR74>AX73,-AX73,AV73*AR74)))) ->  | AW74: =IF(AX73=0,0,SUM(AT74:AV74)*$E$22) ->  | AX74: =IF(SUM(AT74:AW74)<0,0,(SUM(AT74:AW74))) ->  | AY74: =IF(AW74<0,AW74,0) ->  | BB74: 1 | BC74: 100 | BD74: 154844.9629 | BE74: 0 | BF74: =IF(BH73=0,0,IF(BC74=$E$31,-$E$35*BB74,IF(BC74<$E$31,0,IF(-BF73*BB74>BH73,-BH73,BF73*BB74)))) -> -56535 | BG74: =IF(BH73=0,0,SUM(BD74:BF74)*$E$22) -> 4915.498144 | BH74: =IF(SUM(BD74:BG74)<0,0,(SUM(BD74:BG74))) -> 103225.461 | BI74: =IF(BG74<0,BG74,0) -> 0
A75: Single | B75: 0.32 | C75: 170051 | D75: 215950 | E75: =IF($E$13="Single",IF($E$16>D75,(D75-D74),($E$16-E74-E73-E72-E71)),0) -> 0 | F75: 0 | G75: =IF($E$13="Single",IF($F$13>D75,(D75-D74),($F$13-G74-G73-G72-G71)),0) -> 0 | H75: 0 | Q75: 1 | X75: 101 | Y75: =AC74 -> 0 | Z75: 0 | AA75: 0 | AB75: 0 | AC75: 0 | AD75: 0 | AE75: 0 | AH75: 1 | AI75: 101 | AJ75: =AN74 -> 0 | AK75: 0 | AL75: 0 | AM75: 0 | AN75: 0 | AO75: 0 | AR75: 1 | AS75: 101 | AT75: =AX74 ->  | AU75: 0 | AV75: =IF(AX74=0,0,IF(AS75=$E$31,-#REF!*AR75,IF(AS75<$E$31,0,IF(-AV74*AR75>AX74,-AX74,AV74*AR75)))) ->  | BB75: 1 | BC75: 101 | BD75: =BH74 -> 103225.461 | BE75: 0 | BF75: -56535 | BG75: 2334.523051 | BH75: 49024.98408 | BI75: 0
A76: Single | B76: 0.35 | C76: 215951 | D76: 539900 | E76: =IF($E$13="Single",IF($E$16>D76,(D76-D75),($E$16-E75-E74-E73-E72-E71)),0) -> 0 | F76: 0 | G76: =IF($E$13="Single",IF($F$13>D76,(D76-D75),($F$13-G75-G74-G73-G72-G71)),0) -> 0 | H76: 0 | Q76: 1 | X76: =X75+1 -> 102 | Y76: 0 | Z76: 0 | AA76: 0 | AB76: 0 | AC76: 0 | AD76: 0 | AE76: 0 | AH76: 1 | AI76: =AI75+1 -> 102 | AJ76: 0 | AK76: 0 | AL76: 0 | AM76: 0 | AN76: 0 | AO76: 0 | AR76: 1 | AS76: =AS75+1 -> 102 | AU76: 0 | AV76: =IF(AX75=0,0,IF(AS76=$E$31,-#REF!*AR76,IF(AS76<$E$31,0,IF(-AV75*AR76>AX75,-AX75,AV75*AR76)))) ->  | BB76: 1 | BC76: =BC75+1 -> 102 | BD76: 49024.98408 | BE76: 0 | BF76: -49024.98408 | BG76: 0 | BH76: 0 | BI76: 0
A77: Single | B77: 0.37 | C77: 539901 | E77: =IF($E$13="Single",IF($E$16>D76,($E$16-D76),0),0) -> 0 | F77: 0 | G77: =IF($E$13="Single",IF($F$13>D76,($F$13-D76),0),0) -> 0 | H77: 0 | Q77: 1 | X77: 103 | Y77: 0 | Z77: 0 | AA77: 0 | AB77: 0 | AC77: 0 | AD77: 0 | AE77: 0 | AH77: 1 | AI77: 103 | AJ77: 0 | AK77: 0 | AL77: 0 | AM77: 0 | AN77: 0 | AO77: 0 | AR77: 1 | AS77: 103 | AU77: 0 | AV77: =IF(AX76=0,0,IF(AS77=$E$31,-#REF!*AR77,IF(AS77<$E$31,0,IF(-AV76*AR77>AX76,-AX76,AV76*AR77)))) ->  | BB77: 1 | BC77: 103 | BD77: 0 | BE77: 0 | BF77: 0 | BG77: 0 | BH77: 0 | BI77: 0
Q78: 1 | X78: 104 | Y78: 0 | Z78: 0 | AA78: 0 | AB78: 0 | AC78: 0 | AD78: 0 | AE78: 0 | AH78: 1 | AI78: 104 | AJ78: 0 | AK78: 0 | AL78: 0 | AM78: 0 | AN78: 0 | AO78: 0 | AR78: 1 | AS78: 104 | AU78: 0 | AV78: =IF(AX77=0,0,IF(AS78=$E$31,-#REF!*AR78,IF(AS78<$E$31,0,IF(-AV77*AR78>AX77,-AX77,AV77*AR78)))) ->  | BB78: 1 | BC78: 104 | BD78: 0 | BE78: 0 | BF78: 0 | BG78: 0 | BH78: 0 | BI78: 0
E79: Total Taxes Owed | F79: =SUM(F71:F77) -> 0 | G79: Total Taxes Owed | H79: =SUM(H71:H77) -> 0 | Q79: 1 | X79: 105 | Y79: 0 | Z79: 0 | AA79: 0 | AB79: 0 | AC79: 0 | AD79: 0 | AE79: 0 | AH79: 1 | AI79: 105 | AJ79: 0 | AK79: 0 | AL79: 0 | AM79: 0 | AN79: 0 | AO79: 0 | AR79: 1 | AS79: 105 | AU79: 0 | AV79: =IF(AX78=0,0,IF(AS79=$E$31,-#REF!*AR79,IF(AS79<$E$31,0,IF(-AV78*AR79>AX78,-AX78,AV78*AR79)))) ->  | BB79: 1 | BC79: 105 | BD79: 0 | BE79: 0 | BF79: 0 | BG79: 0 | BH79: 0 | BI79: 0
Q80: 1 | X80: 106 | Y80: 0 | Z80: 0 | AA80: 0 | AB80: 0 | AC80: 0 | AD80: 0 | AE80: 0 | AH80: 1 | AI80: 106 | AJ80: 0 | AK80: 0 | AL80: 0 | AM80: 0 | AN80: 0 | AO80: 0 | AR80: 1 | AS80: 106 | AU80: 0 | AV80: =IF(AX79=0,0,IF(AS80=$E$31,-#REF!*AR80,IF(AS80<$E$31,0,IF(-AV79*AR80>AX79,-AX79,AV79*AR80)))) ->  | BB80: 1 | BC80: 106 | BD80: 0 | BE80: 0 | BF80: 0 | BG80: 0 | BH80: 0 | BI80: 0
Q81: 1 | X81: 107 | Y81: 0 | Z81: 0 | AA81: 0 | AB81: 0 | AC81: 0 | AD81: 0 | AE81: 0 | AH81: 1 | AI81: 107 | AJ81: 0 | AK81: 0 | AL81: 0 | AM81: 0 | AN81: 0 | AO81: 0 | AR81: 1 | AS81: 107 | AU81: 0 | AV81: =IF(AX80=0,0,IF(AS81=$E$31,-#REF!*AR81,IF(AS81<$E$31,0,IF(-AV80*AR81>AX80,-AX80,AV80*AR81)))) ->  | BB81: 1 | BC81: 107 | BD81: 0 | BE81: 0 | BF81: 0 | BG81: 0 | BH81: 0 | BI81: 0
B82: Married filing jointly 2023 | E82: Standard deduction 2023 | F82: 27700 | Q82: 1 | X82: 108 | Y82: 0 | Z82: 0 | AA82: 0 | AB82: 0 | AC82: 0 | AD82: 0 | AE82: 0 | AH82: 1 | AI82: 108 | AJ82: 0 | AK82: 0 | AL82: 0 | AM82: 0 | AN82: 0 | AO82: 0 | AR82: 1 | AS82: 108 | AU82: 0 | AV82: =IF(AX81=0,0,IF(AS82=$E$31,-#REF!*AR82,IF(AS82<$E$31,0,IF(-AV81*AR82>AX81,-AX81,AV81*AR82)))) ->  | BB82: 1 | BC82: 108 | BD82: 0 | BE82: 0 | BF82: 0 | BG82: 0 | BH82: 0 | BI82: 0
B83: Tax rate | C83: From | D83: To | E83: Income per bracket | F83: Taxes owed in each category | G83: Income w/ contributions | H83: Taxes owed | Q83: 1 | X83: 109 | Y83: 0 | Z83: 0 | AA83: 0 | AB83: 0 | AC83: 0 | AD83: 0 | AE83: 0 | AH83: 1 | AI83: 109 | AJ83: 0 | AK83: 0 | AL83: 0 | AM83: 0 | AN83: 0 | AO83: 0 | AR83: 1 | AS83: 109 | AU83: 0 | AV83: =IF(AX82=0,0,IF(AS83=$E$31,-#REF!*AR83,IF(AS83<$E$31,0,IF(-AV82*AR83>AX82,-AX82,AV82*AR83)))) ->  | BB83: 1 | BC83: 109 | BD83: 0 | BE83: 0 | BF83: 0 | BG83: 0 | BH83: 0 | BI83: 0
A84: Married | B84: 0.1 | C84: 0 | D84: 20550 | E84: =IF($E$13="Married",IF($E$16>D84,D84,$E$16),0) -> 20550 | F84: =E84*B84 -> 2055 | G84: =IF($E$13="Married",IF($F$13>D84,D84,$F$13),0) -> 20550 | H84: =G84*B84 -> 2055 | Q84: 1 | X84: 110 | Y84: 0 | Z84: 0 | AA84: 0 | AB84: 0 | AC84: 0 | AD84: 0 | AE84: 0 | AH84: 1 | AI84: 110 | AJ84: 0 | AK84: 0 | AL84: 0 | AM84: 0 | AN84: 0 | AO84: 0 | AR84: 1 | AS84: 110 | AU84: 0 | AV84: =IF(AX83=0,0,IF(AS84=$E$31,-#REF!*AR84,IF(AS84<$E$31,0,IF(-AV83*AR84>AX83,-AX83,AV83*AR84)))) ->  | BB84: 1 | BC84: 110 | BD84: 0 | BE84: 0 | BF84: 0 | BG84: 0 | BH84: 0 | BI84: 0
A85: Married | B85: 0.12 | C85: 20551 | D85: 83550 | E85: =IF($E$13="Married",IF($E$16>D85,(D85-D84),($E$16-E84)),0) -> 11750 | F85: =E85*B85 -> 1410 | G85: =IF($E$13="Married",IF($F$13>D85,(D85-D84),($F$13-G84)),0) -> 1750 | H85: 210 | Q85: 1 | X85: 111 | Y85: 0 | Z85: 0 | AA85: 0 | AB85: 0 | AC85: 0 | AD85: 0 | AE85: 0 | AH85: 1 | AI85: 111 | AJ85: 0 | AK85: 0 | AL85: 0 | AM85: 0 | AN85: 0 | AO85: 0 | AR85: 1 | AS85: 111 | AU85: 0 | AV85: =IF(AX84=0,0,IF(AS85=$E$31,-#REF!*AR85,IF(AS85<$E$31,0,IF(-AV84*AR85>AX84,-AX84,AV84*AR85)))) ->  | BB85: 1 | BC85: 111 | BD85: 0 | BE85: 0 | BF85: 0 | BG85: 0 | BH85: 0 | BI85: 0
A86: Married | B86: 0.22 | C86: 83551 | D86: 178150 | E86: =IF($E$13="Married",IF($E$16>D86,(D86-D85),($E$16-E85-E84)),0) -> 0 | F86: 0 | G86: =IF($E$13="Married",IF($F$13>D86,(D86-D85),($F$13-G85-G84)),0) -> 0 | H86: 0 | Q86: 1 | X86: 112 | Y86: 0 | Z86: 0 | AA86: 0 | AB86: 0 | AC86: 0 | AD86: 0 | AE86: 0 | AH86: 1 | AI86: 112 | AJ86: 0 | AK86: 0 | AL86: 0 | AM86: 0 | AN86: 0 | AO86: 0 | AR86: 1 | AS86: 112 | AU86: 0 | AV86: =IF(AX85=0,0,IF(AS86=$E$31,-#REF!*AR86,IF(AS86<$E$31,0,IF(-AV85*AR86>AX85,-AX85,AV85*AR86)))) ->  | BB86: 1 | BC86: 112 | BD86: 0 | BE86: 0 | BF86: 0 | BG86: 0 | BH86: 0 | BI86: 0
A87: Married | B87: 0.24 | C87: 178151 | D87: 340100 | E87: =IF($E$13="Married",IF($E$16>D87,(D87-D86),($E$16-E86-E85-E84)),0) -> 0 | F87: 0 | G87: =IF($E$13="Married",IF($F$13>D87,(D87-D86),($F$13-G86-G85-G84)),0) -> 0 | H87: 0 | Q87: 1 | X87: 113 | Y87: 0 | Z87: 0 | AA87: 0 | AB87: 0 | AC87: 0 | AD87: 0 | AE87: 0 | AH87: 1 | AI87: 113 | AJ87: 0 | AK87: 0 | AL87: 0 | AM87: 0 | AN87: 0 | AO87: 0 | AR87: 1 | AS87: 113 | AU87: 0 | AV87: =IF(AX86=0,0,IF(AS87=$E$31,-#REF!*AR87,IF(AS87<$E$31,0,IF(-AV86*AR87>AX86,-AX86,AV86*AR87)))) ->  | BB87: 1 | BC87: 113 | BD87: 0 | BE87: 0 | BF87: 0 | BG87: 0 | BH87: 0 | BI87: 0
A88: Married | B88: 0.32 | C88: 340101 | D88: 431900 | E88: =IF($E$13="Married",IF($E$16>D88,(D88-D87),($E$16-E87-E86-E85-E84)),0) -> 0 | F88: 0 | G88: =IF($E$13="Married",IF($F$13>D88,(D88-D87),($F$13-G87-G86-G85-G84)),0) -> 0 | H88: 0 | Q88: 1 | X88: 114 | Y88: 0 | Z88: 0 | AA88: 0 | AB88: 0 | AC88: 0 | AD88: 0 | AE88: 0 | AH88: 1 | AI88: 114 | AJ88: 0 | AK88: 0 | AL88: 0 | AM88: 0 | AN88: 0 | AO88: 0 | AR88: 1 | AS88: 114 | AU88: 0 | AV88: =IF(AX87=0,0,IF(AS88=$E$31,-#REF!*AR88,IF(AS88<$E$31,0,IF(-AV87*AR88>AX87,-AX87,AV87*AR88)))) ->  | BB88: 1 | BC88: 114 | BD88: 0 | BE88: 0 | BF88: 0 | BG88: 0 | BH88: 0 | BI88: 0
A89: Married | B89: 0.35 | C89: 431901 | D89: 647850 | E89: =IF($E$13="Married",IF($E$16>D89,(D89-D88),($E$16-E88-E87-E86-E85-E84)),0) -> 0 | F89: 0 | G89: =IF($E$13="Married",IF($F$13>D89,(D89-D88),($F$13-G88-G87-G86-G85-G84)),0) -> 0 | H89: 0 | Q89: 1 | X89: 115 | Y89: 0 | Z89: 0 | AA89: 0 | AB89: 0 | AC89: 0 | AD89: 0 | AE89: 0 | AH89: 1 | AI89: 115 | AJ89: 0 | AK89: 0 | AL89: 0 | AM89: 0 | AN89: 0 | AO89: 0 | AR89: 1 | AS89: 115 | AU89: 0 | AV89: =IF(AX88=0,0,IF(AS89=$E$31,-#REF!*AR89,IF(AS89<$E$31,0,IF(-AV88*AR89>AX88,-AX88,AV88*AR89)))) ->  | BB89: 1 | BC89: 115 | BD89: 0 | BE89: 0 | BF89: 0 | BG89: 0 | BH89: 0 | BI89: 0
A90: Married | B90: 0.37 | C90: 647851 | E90: =IF($E$13="Married",IF($E$16>D89,($E$16-D89),0),0) -> 0 | F90: 0 | G90: =IF($E$13="Married",IF($F$13>D89,($F$13-D89),0),0) -> 0 | H90: 0 | Q90: 1 | X90: 116 | Y90: 0 | Z90: 0 | AA90: 0 | AB90: 0 | AC90: 0 | AD90: 0 | AE90: 0 | AH90: 1 | AI90: 116 | AJ90: 0 | AK90: 0 | AL90: 0 | AM90: 0 | AN90: 0 | AO90: 0 | AR90: 1 | AS90: 116 | AU90: 0 | AV90: =IF(AX89=0,0,IF(AS90=$E$31,-#REF!*AR90,IF(AS90<$E$31,0,IF(-AV89*AR90>AX89,-AX89,AV89*AR90)))) ->  | BB90: 1 | BC90: 116 | BD90: 0 | BE90: 0 | BF90: 0 | BG90: 0 | BH90: 0 | BI90: 0
Q91: 1 | X91: 117 | Y91: 0 | Z91: 0 | AA91: 0 | AB91: 0 | AC91: 0 | AD91: 0 | AE91: 0 | AH91: 1 | AI91: 117 | AJ91: 0 | AK91: 0 | AL91: 0 | AM91: 0 | AN91: 0 | AO91: 0 | AR91: 1 | AS91: 117 | AU91: 0 | AV91: =IF(AX90=0,0,IF(AS91=$E$31,-#REF!*AR91,IF(AS91<$E$31,0,IF(-AV90*AR91>AX90,-AX90,AV90*AR91)))) ->  | BB91: 1 | BC91: 117 | BD91: 0 | BE91: 0 | BF91: 0 | BG91: 0 | BH91: 0 | BI91: 0
E92: Total Taxes Owed | F92: =SUM(F84:F90) -> 3465 | G92: Total Taxes Owed | H92: =SUM(H84:H90) -> 2265 | Q92: 1 | X92: 118 | Y92: 0 | Z92: 0 | AA92: 0 | AB92: 0 | AC92: 0 | AD92: 0 | AE92: 0 | AH92: 1 | AI92: 118 | AJ92: 0 | AK92: 0 | AL92: 0 | AM92: 0 | AN92: 0 | AO92: 0 | AR92: 1 | AS92: 118 | AU92: 0 | AV92: =IF(AX91=0,0,IF(AS92=$E$31,-#REF!*AR92,IF(AS92<$E$31,0,IF(-AV91*AR92>AX91,-AX91,AV91*AR92)))) ->  | BB92: 1 | BC92: 118 | BD92: 0 | BE92: 0 | BF92: 0 | BG92: 0 | BH92: 0 | BI92: 0
Q93: 1 | X93: 119 | Y93: 0 | Z93: 0 | AA93: 0 | AB93: 0 | AC93: 0 | AD93: 0 | AE93: 0 | AH93: 1 | AI93: 119 | AJ93: 0 | AK93: 0 | AL93: 0 | AM93: 0 | AN93: 0 | AO93: 0 | AR93: 1 | AS93: 119 | AU93: 0 | AV93: =IF(AX92=0,0,IF(AS93=$E$31,-#REF!*AR93,IF(AS93<$E$31,0,IF(-AV92*AR93>AX92,-AX92,AV92*AR93)))) ->  | BB93: 1 | BC93: 119 | BD93: 0 | BE93: 0 | BF93: 0 | BG93: 0 | BH93: 0 | BI93: 0
Q94: 1 | X94: 120 | Y94: 0 | Z94: 0 | AA94: 0 | AB94: 0 | AC94: 0 | AD94: 0 | AE94: 0 | AH94: 1 | AI94: 120 | AJ94: 0 | AK94: 0 | AL94: 0 | AM94: 0 | AN94: 0 | AO94: 0 | AR94: 1 | AS94: 120 | AU94: 0 | AV94: =IF(AX93=0,0,IF(AS94=$E$31,-#REF!*AR94,IF(AS94<$E$31,0,IF(-AV93*AR94>AX93,-AX93,AV93*AR94)))) ->  | BB94: 1 | BC94: 120 | BD94: 0 | BE94: 0 | BF94: 0 | BG94: 0 | BH94: 0 | BI94: 0
B95: Married filing separately 2023 | E95: Standard deduction 2023 | F95: 13850 | Q95: 1 | X95: 121 | Y95: 0 | Z95: 0 | AA95: 0 | AB95: 0 | AC95: 0 | AD95: 0 | AE95: 0 | AH95: 1 | AI95: 121 | AJ95: 0 | AK95: 0 | AL95: 0 | AM95: 0 | AN95: 0 | AO95: 0 | AR95: 1 | AS95: 121 | AU95: 0 | AV95: =IF(AX94=0,0,IF(AS95=$E$31,-#REF!*AR95,IF(AS95<$E$31,0,IF(-AV94*AR95>AX94,-AX94,AV94*AR95)))) ->  | BB95: 1 | BC95: 121 | BD95: 0 | BE95: 0 | BF95: 0 | BG95: 0 | BH95: 0 | BI95: 0
B96: Tax rate | C96: From | D96: To | E96: Income per bracket | F96: Taxes owed in each category | G96: Income w/ contributions | H96: Taxes owed | Q96: 1 | X96: 122 | Y96: 0 | Z96: 0 | AA96: 0 | AB96: 0 | AC96: 0 | AD96: 0 | AE96: 0 | AH96: 1 | AI96: 122 | AJ96: 0 | AK96: 0 | AL96: 0 | AM96: 0 | AN96: 0 | AO96: 0 | AR96: 1 | AS96: 122 | AU96: 0 | AV96: =IF(AX95=0,0,IF(AS96=$E$31,-#REF!*AR96,IF(AS96<$E$31,0,IF(-AV95*AR96>AX95,-AX95,AV95*AR96)))) ->  | BB96: 1 | BC96: 122 | BD96: 0 | BE96: 0 | BF96: 0 | BG96: 0 | BH96: 0 | BI96: 0
A97: Married filing separately | B97: 0.1 | C97: 0 | D97: 10275 | E97: =IF($E$13="Married filing separately",IF($E$16>D97,D97,$E$16),0) -> 0 | F97: =E97*B97 -> 0 | G97: =IF($E$13="Married filing separately",IF($F$13>D97,D97,$F$13),0) -> 0 | H97: =G97*B97 -> 0 | Q97: 1 | X97: 123 | Y97: 0 | Z97: 0 | AA97: 0 | AB97: 0 | AC97: 0 | AD97: 0 | AE97: 0 | AH97: 1 | AI97: 123 | AJ97: 0 | AK97: 0 | AL97: 0 | AM97: 0 | AN97: 0 | AO97: 0 | AR97: 1 | AS97: 123 | AU97: 0 | AV97: =IF(AX96=0,0,IF(AS97=$E$31,-#REF!*AR97,IF(AS97<$E$31,0,IF(-AV96*AR97>AX96,-AX96,AV96*AR97)))) ->  | BB97: 1 | BC97: 123 | BD97: 0 | BE97: 0 | BF97: 0 | BG97: 0 | BH97: 0 | BI97: 0
A98: Married filing separately | B98: 0.12 | C98: 10276 | D98: 41775 | E98: =IF($E$13="Married filing separately",IF($E$16>D98,(D98-D97),($E$16-E97)),0) -> 0 | F98: 0 | G98: =IF($E$13="Married filing separately",IF($F$13>D98,(D98-D97),($F$13-G97)),0) -> 0 | H98: 0 | Q98: 1 | X98: 124 | Y98: 0 | Z98: 0 | AA98: 0 | AB98: 0 | AC98: 0 | AD98: 0 | AE98: 0 | AH98: 1 | AI98: 124 | AJ98: 0 | AK98: 0 | AL98: 0 | AM98: 0 | AN98: 0 | AO98: 0 | AR98: 1 | AS98: 124 | AU98: 0 | AV98: =IF(AX97=0,0,IF(AS98=$E$31,-#REF!*AR98,IF(AS98<$E$31,0,IF(-AV97*AR98>AX97,-AX97,AV97*AR98)))) ->  | BB98: 1 | BC98: 124 | BD98: 0 | BE98: 0 | BF98: 0 | BG98: 0 | BH98: 0 | BI98: 0
A99: Married filing separately | B99: 0.22 | C99: 41776 | D99: 89075 | E99: =IF($E$13="Married filing separately",IF($E$16>D99,(D99-D98),($E$16-E98-E97)),0) -> 0 | F99: 0 | G99: =IF($E$13="Married filing separately",IF($F$13>D99,(D99-D98),($F$13-G98-G97)),0) -> 0 | H99: 0 | Q99: 1 | X99: 125 | Y99: 0 | Z99: 0 | AA99: 0 | AB99: 0 | AC99: 0 | AD99: 0 | AE99: 0 | AH99: 1 | AI99: 125 | AJ99: 0 | AK99: 0 | AL99: 0 | AM99: 0 | AN99: 0 | AO99: 0 | AR99: 1 | AS99: 125 | AU99: 0 | AV99: =IF(AX98=0,0,IF(AS99=$E$31,-#REF!*AR99,IF(AS99<$E$31,0,IF(-AV98*AR99>AX98,-AX98,AV98*AR99)))) ->  | BB99: 1 | BC99: 125 | BD99: 0 | BE99: 0 | BF99: 0 | BG99: 0 | BH99: 0 | BI99: 0
A100: Married filing separately | B100: 0.24 | C100: 89076 | D100: 170050 | E100: =IF($E$13="Married filing separately",IF($E$16>D100,(D100-D99),($E$16-E99-E98-E97)),0) -> 0 | F100: 0 | G100: =IF($E$13="Married filing separately",IF($F$13>D100,(D100-D99),($F$13-G99-G98-G97)),0) -> 0 | H100: 0 | Q100: 1 | X100: 126 | Y100: 0 | Z100: 0 | AA100: 0 | AB100: 0 | AC100: 0 | AD100: 0 | AE100: 0 | AH100: 1 | AI100: 126 | AJ100: 0 | AK100: 0 | AL100: 0 | AM100: 0 | AN100: 0 | AO100: 0 | AR100: 1 | AS100: 126 | AU100: 0 | AV100: =IF(AX99=0,0,IF(AS100=$E$31,-#REF!*AR100,IF(AS100<$E$31,0,IF(-AV99*AR100>AX99,-AX99,AV99*AR100)))) ->  | BB100: 1 | BC100: 126 | BD100: 0 | BE100: 0 | BF100: 0 | BG100: 0 | BH100: 0 | BI100: 0
A101: Married filing separately | B101: 0.32 | C101: 170051 | D101: 215950 | E101: =IF($E$13="Married filing separately",IF($E$16>D101,(D101-D100),($E$16-E100-E99-E98-E97)),0) -> 0 | F101: 0 | G101: =IF($E$13="Married filing separately",IF($F$13>D101,(D101-D100),($F$13-G100-G99-G98-G97)),0) -> 0 | H101: 0 | Q101: 1 | X101: 127 | Y101: 0 | Z101: 0 | AA101: 0 | AB101: 0 | AC101: 0 | AD101: 0 | AE101: 0 | AH101: 1 | AI101: 127 | AJ101: 0 | AK101: 0 | AL101: 0 | AM101: 0 | AN101: 0 | AO101: 0 | AR101: 1 | AS101: 127 | AU101: 0 | AV101: =IF(AX100=0,0,IF(AS101=$E$31,-#REF!*AR101,IF(AS101<$E$31,0,IF(-AV100*AR101>AX100,-AX100,AV100*AR101)))) ->  | BB101: 1 | BC101: 127 | BD101: 0 | BE101: 0 | BF101: 0 | BG101: 0 | BH101: 0 | BI101: 0
A102: Married filing separately | B102: 0.35 | C102: 215951 | D102: 323925 | E102: =IF($E$13="Married filing separately",IF($E$16>D102,(D102-D101),($E$16-E101-E100-E99-E98-E97)),0) -> 0 | F102: 0 | G102: =IF($E$13="Married filing separately",IF($F$13>D102,(D102-D101),($F$13-G101-G100-G99-G98-G97)),0) -> 0 | H102: 0 | Q102: 1 | X102: 128 | Y102: 0 | Z102: 0 | AA102: 0 | AB102: 0 | AC102: 0 | AD102: 0 | AE102: 0 | AH102: 1 | AI102: 128 | AJ102: 0 | AK102: 0 | AL102: 0 | AM102: 0 | AN102: 0 | AO102: 0 | AR102: 1 | AS102: 128 | AU102: 0 | AV102: =IF(AX101=0,0,IF(AS102=$E$31,-#REF!*AR102,IF(AS102<$E$31,0,IF(-AV101*AR102>AX101,-AX101,AV101*AR102)))) ->  | BB102: 1 | BC102: 128 | BD102: 0 | BE102: 0 | BF102: 0 | BG102: 0 | BH102: 0 | BI102: 0
A103: Married filing separately | B103: 0.37 | C103: 323926 | E103: =IF($E$13="Married filing separately",IF($E$16>D102,($E$16-D102),0),0) -> 0 | F103: 0 | G103: =IF($E$13="Married filing separately",IF($F$13>D102,($F$13-D102),0),0) -> 0 | H103: 0 | Q103: 1 | X103: 129 | Y103: 0 | Z103: 0 | AA103: 0 | AB103: 0 | AC103: 0 | AD103: 0 | AE103: 0 | AH103: 1 | AI103: 129 | AJ103: 0 | AK103: 0 | AL103: 0 | AM103: 0 | AN103: 0 | AO103: 0 | AR103: 1 | AS103: 129 | AU103: 0 | AV103: =IF(AX102=0,0,IF(AS103=$E$31,-#REF!*AR103,IF(AS103<$E$31,0,IF(-AV102*AR103>AX102,-AX102,AV102*AR103)))) ->  | BB103: 1 | BC103: 129 | BD103: 0 | BE103: 0 | BF103: 0 | BG103: 0 | BH103: 0 | BI103: 0
Q104: 1 | X104: 130 | Y104: 0 | Z104: 0 | AA104: 0 | AB104: 0 | AC104: 0 | AD104: 0 | AE104: 0 | AH104: 1 | AI104: 130 | AJ104: 0 | AK104: 0 | AL104: 0 | AM104: 0 | AN104: 0 | AO104: 0 | AR104: 1 | AS104: 130 | AU104: 0 | AV104: =IF(AX103=0,0,IF(AS104=$E$31,-#REF!*AR104,IF(AS104<$E$31,0,IF(-AV103*AR104>AX103,-AX103,AV103*AR104)))) ->  | BB104: 1 | BC104: 130 | BD104: 0 | BE104: 0 | BF104: 0 | BG104: 0 | BH104: 0 | BI104: 0
E105: Total Taxes Owed | F105: =SUM(F97:F103) -> 0 | G105: Total Taxes Owed | H105: =SUM(H97:H103) -> 0 | Q105: =IF(X105>$E$31,(1+$E$54),1) -> 1 | X105: 131 | Y105: 0 | Z105: =IF(X105>=$E$31,0,$E$17) -> 0 | AA105: 0 | AB105: 0 | AC105: 0 | AD105: 0 | AE105: 0 | AH105: =IF(AI105>$E$31,(1+$E$54),1) -> 1 | AI105: 131 | AJ105: 0 | AK105: =IF(AI105>=$E$31,0,$E$18) -> 0 | AL105: 0 | AM105: 0 | AN105: 0 | AO105: 0 | AR105: =IF(AS105>$E$31,(1+$E$54),1) -> 1 | AS105: 131 | AU105: =IF(AS105>=$E$31,0,$H$19) -> 0 | AV105: =IF(AX104=0,0,IF(AS105=$E$31,-#REF!*AR105,IF(AS105<$E$31,0,IF(-AV104*AR105>AX104,-AX104,AV104*AR105)))) ->  | BB105: =IF(BC105>$E$31,(1+$E$54),1) -> 1 | BC105: 131 | BD105: 0 | BE105: =IF(BC105>=$E$31,0,$H$20) -> 0 | BF105: 0 | BG105: 0 | BH105: 0 | BI105: 0
Q106: 1 | X106: =X105+1 -> 132 | Y106: 0 | Z106: 0 | AA106: 0 | AB106: =IF(AC105=0,0,SUM(Y106:AA106)*$E$22) -> 0 | AC106: 0 | AD106: 0 | AE106: 0 | AH106: 1 | AI106: 132 | AJ106: 0 | AK106: 0 | AL106: 0 | AM106: =IF(AN105=0,0,SUM(AJ106:AL106)*$E$22) -> 0 | AN106: 0 | AO106: 0 | AR106: 1 | AS106: 132 | AU106: 0 | AV106: =IF(AX105=0,0,IF(AS106=$E$31,-#REF!*AR106,IF(AS106<$E$31,0,IF(-AV105*AR106>AX105,-AX105,AV105*AR106)))) ->  | AW106: =IF(AX105=0,0,SUM(AT106:AV106)*$E$22) ->  | BB106: 1 | BC106: 132 | BD106: 0 | BE106: 0 | BF106: =IF(BH105=0,0,IF(BC106=$E$31,-$E$35*BB106,IF(BC106<$E$31,0,IF(-BF105*BB106>BH105,-BH105,BF105*BB106)))) -> 0 | BG106: =IF(BH105=0,0,SUM(BD106:BF106)*$E$22) -> 0 | BH106: 0 | BI106: 0
Q107: 1 | X107: =X106+1 -> 133 | Y107: 0 | Z107: 0 | AA107: 0 | AB107: 0 | AC107: 0 | AD107: 0 | AE107: 0 | AH107: 1 | AI107: 133 | AJ107: 0 | AK107: 0 | AL107: 0 | AM107: 0 | AN107: 0 | AO107: 0 | AR107: 1 | AS107: 133 | AU107: 0 | AV107: =IF(AX106=0,0,IF(AS107=$E$31,-#REF!*AR107,IF(AS107<$E$31,0,IF(-AV106*AR107>AX106,-AX106,AV106*AR107)))) ->  | BB107: 1 | BC107: 133 | BD107: 0 | BE107: 0 | BF107: 0 | BG107: 0 | BH107: 0 | BI107: 0
B108: Head of household 2023 | E108: Standard deduction 2023 | F108: 20800 | Q108: 1 | X108: 134 | Y108: 0 | Z108: 0 | AA108: 0 | AB108: 0 | AC108: 0 | AD108: 0 | AE108: 0 | AH108: 1 | AI108: 134 | AJ108: 0 | AK108: 0 | AL108: 0 | AM108: 0 | AN108: 0 | AO108: 0 | AR108: 1 | AS108: 134 | AU108: 0 | AV108: =IF(AX107=0,0,IF(AS108=$E$31,-#REF!*AR108,IF(AS108<$E$31,0,IF(-AV107*AR108>AX107,-AX107,AV107*AR108)))) ->  | BB108: 1 | BC108: 134 | BD108: 0 | BE108: 0 | BF108: 0 | BG108: 0 | BH108: 0 | BI108: 0
B109: Tax rate | C109: From | D109: To | E109: Income per bracket | F109: Taxes owed in each category | G109: Income w/ contributions | H109: Taxes owed | Q109: 1 | X109: 135 | Y109: 0 | Z109: 0 | AA109: 0 | AB109: 0 | AC109: 0 | AD109: 0 | AE109: 0 | AH109: 1 | AI109: 135 | AJ109: 0 | AK109: 0 | AL109: 0 | AM109: 0 | AN109: 0 | AO109: 0 | AR109: 1 | AS109: 135 | AU109: 0 | AV109: =IF(AX108=0,0,IF(AS109=$E$31,-#REF!*AR109,IF(AS109<$E$31,0,IF(-AV108*AR109>AX108,-AX108,AV108*AR109)))) ->  | BB109: 1 | BC109: 135 | BD109: 0 | BE109: 0 | BF109: 0 | BG109: 0 | BH109: 0 | BI109: 0
A110: Head of household | B110: 0.1 | C110: 0 | D110: 14650 | E110: =IF($E$13="Head of household",IF($E$16>D110,D110,$E$16),0) -> 0 | F110: =E110*B110 -> 0 | G110: =IF($E$13="Head of household",IF($F$13>D110,D110,$F$13),0) -> 0 | H110: =G110*B110 -> 0 | Q110: 1 | X110: 136 | Y110: 0 | Z110: 0 | AA110: 0 | AB110: 0 | AC110: 0 | AD110: 0 | AE110: 0 | AH110: 1 | AI110: 136 | AJ110: 0 | AK110: 0 | AL110: 0 | AM110: 0 | AN110: 0 | AO110: 0 | AR110: 1 | AS110: 136 | AU110: 0 | AV110: =IF(AX109=0,0,IF(AS110=$E$31,-#REF!*AR110,IF(AS110<$E$31,0,IF(-AV109*AR110>AX109,-AX109,AV109*AR110)))) ->  | BB110: 1 | BC110: 136 | BD110: 0 | BE110: 0 | BF110: 0 | BG110: 0 | BH110: 0 | BI110: 0
A111: Head of household | B111: 0.12 | C111: 14651 | D111: 55900 | E111: =IF($E$13="Head of household",IF($E$16>D111,(D111-D110),($E$16-E110)),0) -> 0 | F111: 0 | G111: =IF($E$13="Head of household",IF($F$13>D111,(D111-D110),($F$13-G110)),0) -> 0 | H111: 0 | Q111: 1 | X111: =X110+1 -> 137 | Y111: 0 | Z111: 0 | AA111: 0 | AB111: 0 | AC111: 0 | AD111: 0 | AE111: 0 | AH111: 1 | AI111: 137 | AJ111: 0 | AK111: 0 | AL111: 0 | AM111: 0 | AN111: 0 | AO111: 0 | AR111: 1 | AS111: 137 | AU111: 0 | AV111: =IF(AX110=0,0,IF(AS111=$E$31,-#REF!*AR111,IF(AS111<$E$31,0,IF(-AV110*AR111>AX110,-AX110,AV110*AR111)))) ->  | BB111: 1 | BC111: 137 | BD111: 0 | BE111: 0 | BF111: 0 | BG111: 0 | BH111: 0 | BI111: 0
A112: Head of household | B112: 0.22 | C112: 55901 | D112: 89050 | E112: =IF($E$13="Head of household",IF($E$16>D112,(D112-D111),($E$16-E111-E110)),0) -> 0 | F112: 0 | G112: =IF($E$13="Head of household",IF($F$13>D112,(D112-D111),($F$13-G111-G110)),0) -> 0 | H112: 0 | Q112: 1 | X112: =X111+1 -> 138 | Y112: 0 | Z112: 0 | AA112: 0 | AB112: 0 | AC112: 0 | AD112: 0 | AE112: 0 | AH112: 1 | AI112: 138 | AJ112: 0 | AK112: 0 | AL112: 0 | AM112: 0 | AN112: 0 | AO112: 0 | AR112: 1 | AS112: 138 | AU112: 0 | AV112: =IF(AX111=0,0,IF(AS112=$E$31,-#REF!*AR112,IF(AS112<$E$31,0,IF(-AV111*AR112>AX111,-AX111,AV111*AR112)))) ->  | BB112: 1 | BC112: 138 | BD112: 0 | BE112: 0 | BF112: 0 | BG112: 0 | BH112: 0 | BI112: 0
A113: Head of household | B113: 0.24 | C113: 89051 | D113: 170050 | E113: =IF($E$13="Head of household",IF($E$16>D113,(D113-D112),($E$16-E112-E111-E110)),0) -> 0 | F113: 0 | G113: =IF($E$13="Head of household",IF($F$13>D113,(D113-D112),($F$13-G112-G111-G110)),0) -> 0 | H113: 0
A114: Head of household | B114: 0.32 | C114: 170051 | D114: 215950 | E114: =IF($E$13="Head of household",IF($E$16>D114,(D114-D113),($E$16-E113-E112-E111-E110)),0) -> 0 | F114: 0 | G114: =IF($E$13="Head of household",IF($F$13>D114,(D114-D113),($F$13-G113-G112-G111-G110)),0) -> 0 | H114: 0
A115: Head of household | B115: 0.35 | C115: 215951 | D115: 539900 | E115: =IF($E$13="Head of household",IF($E$16>D115,(D115-D114),($E$16-E114-E113-E112-E111-E110)),0) -> 0 | F115: 0 | G115: =IF($E$13="Head of household",IF($F$13>D115,(D115-D114),($F$13-G114-G113-G112-G111-G110)),0) -> 0 | H115: 0
A116: Head of household | B116: 0.37 | C116: 539901 | E116: =IF($E$13="Head of household",IF($E$16>D115,($E$16-D115),0),0) -> 0 | F116: 0 | G116: =IF($E$13="Head of household",IF($F$13>D115,($F$13-D115),0),0) -> 0 | H116: 0 | AB116: Total after-tax disbursements: | AD116: =-SUM(AD9:AD112)+AE116 -> 1620134.263 | AE116: =SUM(AE9:AE112) -> 1025 | AK116: Total Disbursements | AL116: =-SUM(AL9:AL112)+AO116 -> 1406661.716 | AO116: =SUM(AO9:AO112) -> 0 | AU116: Total Disbursements | AV116: =-SUM(AV9:AV112)+AY116 ->  | AY116: =SUM(AY9:AY112) ->  | BE116: Total Disbursements | BF116: =-SUM(BF9:BF112)+BI116 -> 1858144.984 | BI116: =SUM(BI9:BI112) -> 0
E118: Total Taxes Owed | F118: =SUM(F110:F116) -> 0 | G118: Total Taxes Owed | H118: =SUM(H110:H116) -> 0 | AL118: =AL116-AD116 -> -213472.547 | AV118: =AV116-AD116 ->  | BF118: =BF116-AD116 -> 238010.721
E121: Sum | F121: =SUM(F118,F105,F92,F79) -> 3465 | G121: Taxes owed with contribution | H121: =SUM(H118,H105,H92,H79) -> 2265 | BF121: (but you're contributing an additional $2,200 a year with this method to get your gains. You could get the same results with the 401k if you just invested $XXX amount (which is probably less)).
G123: Taxes saved each year | H123: =F121-H121 -> 1200
B129: Taxes at Retirement | E129: Traditional | G129: Roth
B131: Single filers 2023 | E131: Standard deduction | F131: 13850
B132: Tax rate | C132: From | D132: To | E132: Income per bracket | F132: Taxes owed in each category | G132: Taxable Income | H132: Taxes owed
A133: Single | B133: 0.1 | C133: 0 | D133: 10275 | E133: =IF($E$32="Single",IF($E$38>D133,D133,$E$38),0) -> 0 | F133: =E133*B133 -> 0 | G133: 0 | H133: 0
A134: Single | B134: 0.12 | C134: 10276 | D134: 41775 | E134: =IF($E$32="Single",IF($E$38>D134,(D134-D133),($E$38-E133)),0) -> 0 | F134: 0 | G134: 0 | H134: 0
A135: Single | B135: 0.22 | C135: 41776 | D135: 89075 | E135: =IF($E$32="Single",IF($E$38>D135,(D135-D134),($E$38-E134-E133)),0) -> 0 | F135: 0 | G135: 0 | H135: 0
A136: Single | B136: 0.24 | C136: 89076 | D136: 170050 | E136: =IF($E$32="Single",IF($E$38>D136,(D136-D135),($E$38-E135-E134-E133)),0) -> 0 | F136: 0 | G136: 0 | H136: 0
A137: Single | B137: 0.32 | C137: 170051 | D137: 215950 | E137: =IF($E$32="Single",IF($E$38>D137,(D137-D136),($E$38-E136-E135-E134-E133)),0) -> 0 | F137: 0 | G137: 0 | H137: 0
A138: Single | B138: 0.35 | C138: 215951 | D138: 539900 | E138: =IF($E$32="Single",IF($E$38>D138,(D138-D137),($E$38-E137-E136-E135-E134-E133)),0) -> 0 | F138: 0 | G138: 0 | H138: 0
A139: Single | B139: 0.37 | C139: 539901 | E139: =IF($E$32="Single",IF($E$38>D138,($E$38-D138),0),0) -> 0 | F139: 0 | G139: 0 | H139: 0
E141: Total Taxes Owed | F141: =SUM(F133:F139) -> 0 | G141: Total Taxes Owed | H141: =SUM(H133:H139) -> 0
B144: Married filing jointly 2023 | E144: Standard deduction 2023 | F144: 27700
B145: Tax rate | C145: From | D145: To | E145: Income per bracket | F145: Taxes owed in each category | G145: Taxable Income | H145: Taxes owed
A146: Married | B146: =10% -> 0.1 | C146: 0 | D146: 20550 | E146: =IF($E$32="Married",IF($E$38>D146,D146,$E$38),0) -> 20550 | F146: =E146*B146 -> 2055 | G146: 0 | H146: 0
A147: Married | B147: =12% -> 0.12 | C147: 20551 | D147: 83550 | E147: =IF($E$32="Married",IF($E$38>D147,(D147-D146),($E$38-E146)),0) -> 11750 | F147: =E147*B147 -> 1410 | G147: 0 | H147: 0
A148: Married | B148: =22% -> 0.22 | C148: 83551 | D148: 178150 | E148: =IF($E$32="Married",IF($E$38>D148,(D148-D147),($E$38-E147-E146)),0) -> 0 | F148: =E148*B148 -> 0 | G148: 0 | H148: 0
A149: Married | B149: =24% -> 0.24 | C149: 178151 | D149: 340100 | E149: =IF($E$32="Married",IF($E$38>D149,(D149-D148),($E$38-E148-E147-E146)),0) -> 0 | F149: =E149*B149 -> 0 | G149: 0 | H149: 0
A150: Married | B150: =32% -> 0.32 | C150: 340101 | D150: 431900 | E150: =IF($E$32="Married",IF($E$38>D150,(D150-D149),($E$38-E149-E148-E147-E146)),0) -> 0 | F150: =E150*B150 -> 0 | G150: 0 | H150: 0
A151: Married | B151: =35% -> 0.35 | C151: 431901 | D151: 647850 | E151: =IF($E$32="Married",IF($E$38>D151,(D151-D150),($E$38-E150-E149-E148-E147-E146)),0) -> 0 | F151: =E151*B151 -> 0 | G151: 0 | H151: 0
A152: Married | B152: =37% -> 0.37 | C152: 647851 | E152: =IF($E$32="Married",IF($E$38>D151,($E$38-D151),0),0) -> 0 | F152: 0 | G152: 0 | H152: 0
E154: Total Taxes Owed | F154: =SUM(F146:F152) -> 3465 | G154: Total Taxes Owed | H154: =SUM(H146:H152) -> 0
B157: Married filing separately 2023 | E157: Standard deduction 2023 | F157: 13850
B158: Tax rate | C158: From | D158: To | E158: Income per bracket | F158: Taxes owed in each category | G158: Taxable Income | H158: Taxes owed
A159: Married filing separately | B159: 0.1 | C159: 0 | D159: 10275 | E159: =IF($E$32="Married filing separately",IF($E$38>D159,D159,$E$38),0) -> 0 | F159: =E159*B159 -> 0 | G159: 0 | H159: 0
A160: Married filing separately | B160: 0.12 | C160: 10276 | D160: 41775 | E160: =IF($E$32="Married filing separately",IF($E$38>D160,(D160-D159),($E$38-E159)),0) -> 0 | F160: 0 | G160: 0 | H160: 0
A161: Married filing separately | B161: 0.22 | C161: 41776 | D161: 89075 | E161: =IF($E$32="Married filing separately",IF($E$38>D161,(D161-D160),($E$38-E160-E159)),0) -> 0 | F161: 0 | G161: 0 | H161: 0
A162: Married filing separately | B162: 0.24 | C162: 89076 | D162: 170050 | E162: =IF($E$32="Married filing separately",IF($E$38>D162,(D162-D161),($E$38-E161-E160-E159)),0) -> 0 | F162: 0 | G162: 0 | H162: 0
A163: Married filing separately | B163: 0.32 | C163: 170051 | D163: 215950 | E163: =IF($E$32="Married filing separately",IF($E$38>D163,(D163-D162),($E$38-E162-E161-E160-E159)),0) -> 0 | F163: 0 | G163: 0 | H163: 0
A164: Married filing separately | B164: 0.35 | C164: 215951 | D164: 323925 | E164: =IF($E$32="Married filing separately",IF($E$38>D164,(D164-D163),($E$38-E163-E162-E161-E160-E159)),0) -> 0 | F164: 0 | G164: 0 | H164: 0
A165: Married filing separately | B165: 0.37 | C165: 323926 | E165: =IF($E$32="Married filing separately",IF($E$38>D164,($E$38-D164),0),0) -> 0 | F165: 0 | G165: 0 | H165: 0
E167: Total Taxes Owed | F167: =SUM(F159:F165) -> 0 | G167: Total Taxes Owed | H167: =SUM(H159:H165) -> 0
B170: Head of household 2023 | E170: Standard deduction 2023 | F170: 20800
B171: Tax rate | C171: From | D171: To | E171: Income per bracket | F171: Taxes owed in each category | G171: Taxable Income | H171: Taxes owed
A172: Head of household | B172: 0.1 | C172: 0 | D172: 14650 | E172: =IF($E$32="Head of household",IF($E$38>D172,D172,$E$38),0) -> 0 | F172: =E172*B172 -> 0 | G172: 0 | H172: 0
A173: Head of household | B173: 0.12 | C173: 14651 | D173: 55900 | E173: =IF($E$32="Head of household",IF($E$38>D173,(D173-D172),($E$38-E172)),0) -> 0 | F173: 0 | G173: 0 | H173: 0
A174: Head of household | B174: 0.22 | C174: 55901 | D174: 89050 | E174: =IF($E$32="Head of household",IF($E$38>D174,(D174-D173),($E$38-E173-E172)),0) -> 0 | F174: 0 | G174: 0 | H174: 0
A175: Head of household | B175: 0.24 | C175: 89051 | D175: 170050 | E175: =IF($E$32="Head of household",IF($E$38>D175,(D175-D174),($E$38-E174-E173-E172)),0) -> 0 | F175: 0 | G175: 0 | H175: 0
A176: Head of household | B176: 0.32 | C176: 170051 | D176: 215950 | E176: =IF($E$32="Head of household",IF($E$38>D176,(D176-D175),($E$38-E175-E174-E173-E172)),0) -> 0 | F176: 0 | G176: 0 | H176: 0
A177: Head of household | B177: 0.35 | C177: 215951 | D177: 539900 | E177: =IF($E$32="Head of household",IF($E$38>D177,(D177-D176),($E$38-E176-E175-E174-E173-E172)),0) -> 0 | F177: 0 | G177: 0 | H177: 0
A178: Head of household | B178: 0.37 | C178: 539901 | E178: =IF($E$32="Head of household",IF($E$38>D177,($E$38-D177),0),0) -> 0 | F178: 0 | G178: 0 | H178: 0
E180: Total Taxes Owed | F180: =SUM(F172:F178) -> 0 | G180: Total Taxes Owed | H180: =SUM(H172:H178) -> 0
E183: Sum | F183: =SUM(F180,F167,F154,F141) -> 3465 | G183: Taxes owed with contribution | H183: =SUM(H180,H167,H154,H141) -> 0

Sheet Data (hidden)
C3: Single | D3: 13850
C4: Married | D4: 27700
C5: Married filing separately | D5: 13850
C6: Head of household | D6: 20800
